{"text_format":"3","workbook":"xlsx","n_sheets":14,"sheets":["Setting","Menu","Madrasah","Guru","Cover PK Guru","Penilaian PK Guru","Lampiran & Rekap PK Guru","AK PK Guru","Lembar Pengamatan","Cover PPKP","SKP","PCSKP","Prilaku","PPKP"],"not_rendered":{"images":3,"macros":1,"defined_names":12,"comments":1},"read":"whole","date_system":"1900"}

{"sheet":"Setting","index":0,"n_rows":79,"n_cols":24,"rows_kept":79,"merged":[[0,9,0,10]]}
["Pangkat Gol. Ruang","Jabatan Guru","Tugas Tambahan","]","AKK","AK PB/PK","AKPKB (PD)","AKPKB (PI/KI)","AKP","Persentase AK Guru Kelas/Mata Pelajaran"]
["-","Guru",null,"Pengatur Muda / II a",{"$f":"SUM(F2:I2)","v":50},42,3,0,5,{"$nulls":14},"URAIAN SKP"]
["Pengatur Muda / II a","Guru",null,"Pengatur Muda Tk. I / II b",{"$f":"SUM(F3:I3)","v":50},42,3,0,5,{"$nulls":14},"UNSUR UTAMA"]
["Pengatur Muda Tk. I / II b","Guru",null,"Pengatur / II c",{"$f":"SUM(F4:I4)","v":50},42,3,0,5,{"$f":"C4","v":0},{"v":0.5,"d":"50%"},"Mengelola dan mendayagunakan pendidik dan tenaga kependidikan secara optimal","Memanfaatkan teknologi secara efektif dalam kegiatan pembelajaran","Menyusun program supervisi akademik dalam rangka peningkatan profesionalisme guru","Melaksanakan supervisi akademik terhadap guru dengan menggunakan pendekatan dan tekhnik supervisi yang tepat","Menilai dan menindak lanjuti kegiatan supervisi akademik dalam rangka peningkatan profesionalisme guru",5,"Bidang Kurikulum",null,"Melaksanakan kegiatan kolektif guru (MGMP)",{"v":0.15,"d":"0.150"},"Laporan",null,"Melaksanakan kegiatan kolektif guru (MGMP)"]
["Pengatur / II c","Guru",null,"Pengatur Tk. I / II d",{"$f":"SUM(F5:I5)","v":50},42,3,0,5,0,{"v":0.5,"d":"50%"},"Mengelola peserta didik dalam rangka pengembangan kapasitasnya secara optimal sesuai minat dan bakat masing-masing","Mengelola layanan-layanan khusus madrasah dalam mendukung kegiatan pembelajaran dan kegiatan peserta didik di madrasah","Melaksanakan bimbingan kegiatan kegiatan Kesiswaan","Menegakkan disiplin dan tata tertib siswa","  ",4,"Bidang Kesiswaan",null,"Membuat karya tulis ilmiah berupa laporan hasil penelitian dalam bentuk buku secara nasional disahkan oleh BSNP",{"v":4,"d":"4.000"},"Laporan",null,"Membuat karya tulis ilmiah berupa laporan hasil penelitian pendidikan di madrasah, diseminarkan di madrasah dan disimpan di perpustakaan madrasah"]
["Pengatur Tk. I / II d","Guru",null,"Penata Muda / III a",{"$f":"SUM(F6:I6)","v":50},42,3,0,5,0,{"v":0.5,"d":"50%"},"Membangun jejaring kerjasama dengan pihak luar","Mengelola hubungan madrasah dengan pihak lain di luar madrasah dalam rangka mendapatkan dukungan ide, sumber belajar, dan pembiayaan madrasah","Mempublisasikan kebijakan, program madrasah dan prestasi madrasah pada pihak di luar madrasah","  ","  ",3,"Bidang Hubungan Masyarakat",null,"Membuat karya tulis ilmiah berupa laporan hasil penelitian pendidikan di madrasah dalam bentuk majalah/jurnal ilmiah tingkat nasional",{"v":3,"d":"3.000"},"Laporan",null,"Membuat makalah ilmiah bidang pembelajaran, tidak diterbitkan, disimpan di perpustakaan"]
["Penata Muda / III a","Guru Pertama",null,"Penata Muda Tk. I / III b",{"$f":"SUM(F7:I7)","v":50},38,3,4,5,0,{"v":0.5,"d":"50%"},"Mengelola dan mendayagunakan sarana dan prasarana madrasah secara optimal untuk kepentingan pembelajaran","Mengelola lingkungan madrasah yang menjamin keamanan, keselamatan, dan kesehatan","Mengelola sistem informasi madrasah dalam mendukung penyusunan program dan pengambilan keputusan","  ","  ",3,"Bidang Sarana dan Prasarana",null,"Membuat karya tulis ilmiah berupa laporan hasil penelitian pendidikan di madrasah dalam bentuk majalah/jurnal ilmiah tingkat provinsi",{"v":2,"d":"2.000"},"Laporan",null,"Membuat modul/diktat pembelajaran per semester, digunakan di madrasah"]
["Penata Muda Tk. I / III b","Guru Pertama",null,"Penata / III c",100,81,3,6,10,0,{"v":1.5,"d":"150%"},{"$nulls":8},"Membuat karya tulis ilmiah berupa laporan hasil penelitian pendidikan di madrasah dalam bentuk majalah/jurnal ilmiah tingkat kabupaten",{"v":1,"d":"1.000"},"Laporan",null,"Membuat alat pelajaran kategori sederhana"]
["Penata / III c","Guru Muda",null,"Penata Tk. I / III d",100,78,4,8,10,0,{"v":2.5,"d":"250%"},{"$nulls":8},"Membuat karya tulis ilmiah berupa laporan hasil penelitian pendidikan di madrasah, diseminarkan di madrasah dan disimpan di perpustakaan madrasah",{"v":4,"d":"4.000"},"Laporan",null,"Membuat alat peraga pembelajaran kategori sederhana"]
["Penata Tk. I / III d","Guru Muda",null,"Pembina / IV a",150,119,4,12,15,{"$nulls":10},"Membuat makalah ilmiah bidang pembelajaran, tidak diterbitkan, disimpan di perpustakaan",{"v":2,"d":"2.000"},"Laporan",null,"Membuat alat praktekum kategori sederhana"]
["Pembina / IV a","Guru Madya",null,"Pembina Tk. I / IV b",150,119,4,12,15,{"$nulls":10},"Membuat artikel ilmiah dimuat di media nasional",{"v":2,"d":"2.000"},"Laporan",null,"UNSUR PENUNJANG"]
["Pembina Tk. I / IV b","Guru Madya",null,"Pembina Utama Muda / IV c",150,116,5,14,15,{"$nulls":10},"Membuat artikel ilmiah dimuat di media tingkat provinsi (koran daerah)",{"v":1.5,"d":"1.500"},"Laporan",null,"Menjadi pengawas ujian penilaian dan evaluasi terhadap proses dan hasil belajar"]
["Pembina Utama Muda / IV c","Guru Madya",null,"Pembina Utama Madya / IV d",200,155,5,20,20,{"$nulls":10},"Membuat artikel ilmiah tentang pendidikan dan pembelajaran tingkat lingkungan madrasah",{"v":1,"d":"1.000"},"Laporan",null,"Membimbing siswa dalam kegiatan ekstrakurikuler"]
["Pembina Utama Madya / IV d","Guru Utama",null,"Pembina Utama / IV e",{"$nulls":15},"Membuat publikasi buku teks yang lolos BSNP tingkat nasional",{"v":6,"d":"6.000"},"Laporan",null,"Menjadi anggota dalam organisasi profesi"]
["Pembina Utama / IV e","Guru Utama",{"$nulls":17},"Membuat publikasi buku teks yang dicetak penerbit ber-ISBN",{"v":3,"d":"3.000"},"Laporan",null,0]
[{"$nulls":19},"Membuat publikasi buku teks yang dicetak penerbit belum ber-ISBN",{"v":1,"d":"1.000"},"Laporan"]
["Pendidikan Terakhir",{"$nulls":18},"Membuat modul/diktat pembelajaran per semester, digunakan tingkat provinsi",{"v":1.5,"d":"1.500"},"Laporan"]
["S.1",{"$nulls":18},"Membuat modul/diktat pembelajaran per semester, digunakan tingkat kabupaten/kota",{"v":1,"d":"1.000"},"Laporan"]
["S.2",{"$nulls":18},"Membuat modul/diktat pembelajaran per semester, digunakan di madrasah",{"v":0.5,"d":"0.500"},"Laporan"]
["S.3",{"$nulls":18},"Membuat buku dalam bidang pendidikan dicetak oleh penerbit ber-ISBN",{"v":3,"d":"3.000"},"Buku"]
[{"$nulls":19},"Membuat buku dalam bidang pendidikan dicetak oleh penerbit belum ber-ISBN",{"v":1.5,"d":"1.500"},"Buku"]
[{"$nulls":19},"Membuat karya hasil terjemahan dinyatakan oleh kepala madrasah",{"v":1,"d":"1.000"},"Karya Terjemahan"]
["H. SOIF, S.Ag, M.Pd.","19680302 199203 1 002","Pembina Tk. I / IV b","2015-10-01","Kepala Madrasah","Kepala Madrasah",{"$nulls":13},"Membuat buku pedoman guru",{"v":1.5,"d":"1.500"},"Buku"]
["R. WARNIATI, S. Pd.","19671211 199412 2 003","Pembina Tk. I / IV b","2012-04-01","Anggota","Wali Kelas",{"$nulls":13},"Menemukan teknologi tepat guna kategori komplek",{"v":4,"d":"4.000"},"Hasil Karya"]
["Dra. Hj. SITI RESMI NUGRAHWATI","19650414 199303 2 002","Pembina / IV a","2019-04-01","Anggota","Wali Kelas",{"$nulls":13},"Menemukan teknologi tepat guna kategori sederhana",{"v":2,"d":"2.000"},"Hasil Karya"]
["Drs. H. UU SYAMSU, MM","19630926 199603 1 001","Pembina / IV a","2018-04-01","Anggota","Wali Kelas",{"$nulls":13},"Menemukan/menciptakan karya seni kategori komplek",{"v":4,"d":"4.000"},"Hasil Karya"]
["Hj. RATNA TINTA WUNGU, S.Ag., M.Pd.I.","19671025 199903 2 001","Pembina / IV a","2019-04-01","Anggota","Wali Kelas",{"$nulls":13},"Menemukan/menciptakan karya seni kategori sederhana",{"v":2,"d":"2.000"},"Hasil Karya"]
["H. SYAMSUL ARIFIN. S.Ag.","19690804 199903 1 003","Pembina / IV a","2019-04-01","Anggota","Wakil Kepala Madrasah",{"$nulls":13},"Membuat alat pelajaran kategori komplek",{"v":2,"d":"2.000"},"Alat Pelajaran"]
["DENDI MULYADI, S.Pd.","19700520 199903 1 003","Pembina / IV a","2019-04-01","Anggota","Wali Kelas",{"$nulls":13},"Membuat alat pelajaran kategori sederhana",{"v":1,"d":"1.000"},"Alat Pelajaran"]
["SUBHAN S.Ag.","19690915 200312 1 002","Pembina / IV a","2013-04-01","Anggota","Guru Mata Pelajaran",{"$nulls":13},"Membuat alat peraga pembelajaran kategori komplek",{"v":2,"d":"2.000"},"Alat Peraga"]
["IDA FARIDA, S.Ag.","19710531 200312 2 001","Pembina / IV a","2019-04-01","Anggota","Wali Kelas",{"$nulls":13},"Membuat alat peraga pembelajaran kategori sederhana",{"v":1,"d":"1.000"},"Alat Peraga"]
["NURHAYATI, S.Pd., M.Pd.I.","19690512 200501 2 005","Penata Tk. I / III d","2017-10-01","Anggota","Wakil Kepala Madrasah",{"$nulls":13},"Membuat alat praktekum kategori komplek",{"v":4,"d":"4.000"},"Alat Praktik"]
["AAN MUKSANI S.Ag.","19720603 200501 1 001","Pembina / IV a","2019-10-01","Anggota","Guru Mata Pelajaran",{"$nulls":13},"Membuat alat praktekum kategori sederhana",{"v":2,"d":"2.000"},"Alat Praktik"]
["NINA AGUSTIANA, M.Pd.","197708052003122008","Pembina / IV a",null,"Anggota","Wali Kelas"]
["BASUNI, S.Ag., M.Pd.I.","197509042005011003","Pembina / IV a",null,"Anggota","Wali Kelas"]
["MAMAN ROHIMAN, S.Sos.","19740612 200710 1 003","Penata / III c","2017-04-01","Sekretaris","Wakil Kepala Madrasah",{"$nulls":13},"Mengikuti kegiatan penyusunan standar/pedoman/soal dan sejenisnya tingkat nasional",{"v":1,"d":"1.000"},"SK"]
[{"$nulls":19},"Mengikuti kegiatan penyusunan standar/pedoman/soal dan sejenisnya tingkat provinsi",{"v":1,"d":"1.000"},"SK"]
[]
[]
[{"$nulls":19},"Membimbing siswa dalam kegiatan ekstrakurikuler",{"v":0.17,"d":"0.170"},"SK"]
[{"$nulls":19},"Menjadi pengawas ujian penilaian dan evaluasi terhadap proses dan hasil belajar",{"v":0.08,"d":"0.080"},"SK"]
[{"$nulls":19},"Menjadi pengurus dalam organisasi profesi",{"v":1,"d":"1.000"},"SK"]
[{"$nulls":19},"Menjadi anggota dalam organisasi profesi",{"v":0.75,"d":"0.750"},"SK"]
{"$rows_empty":12}
[{"$nulls":19},"Pembelajaran : Guru","AK"]
[{"$nulls":19},"Penata Muda / III a",13.125]
[{"$nulls":19},"Penata Muda Tk. I / III b",11.875]
[{"$nulls":19},"Penata / III c",25.313]
[{"$nulls":19},"Penata Tk. I / III d",24.375]
[{"$nulls":19},"Pembina / IV a",37.188]
[{"$nulls":19},"Pembina Tk. I / IV b",37.188]
[{"$nulls":19},"Pembina Utama Muda / IV c",37.188]
[]
[]
[{"$nulls":19},"Tugas Tambahan : Kepala Madrasah","AK"]
[{"$nulls":19},"Penata Muda / III a",{"v":9.84375,"d":"9.844"}]
[{"$nulls":19},"Penata Muda Tk. I / III b",{"v":8.90625,"d":"8.906"}]
[{"$nulls":19},"Penata / III c",{"v":18.98475,"d":"18.985"}]
[{"$nulls":19},"Penata Tk. I / III d",{"v":18.28125,"d":"18.281"}]
[{"$nulls":19},"Pembina / IV a",{"v":27.891000000000002,"d":"27.891"}]
[{"$nulls":19},"Pembina Tk. I / IV b",{"v":27.891000000000002,"d":"27.891"}]
[{"$nulls":19},"Pembina Utama Muda / IV c",{"v":27.891000000000002,"d":"27.891"}]
[]
[]
["Drs. H. MUJAYIN, M.Pd.I","19650624 199303 1 005","Pembina Tk. I / IV b","Kepala Kantor","Kementerian Agama Kabupaten Cirebon",null,"Drs. H. MUJAYIN, M.Pd.I","19650624 199303 1 005","Pembina Tk. I / IV b","Kepala Kantor","Kementerian Agama Kabupaten Cirebon"]
["H. SOIF, S.Ag, M.Pd.","19680302 199203 1 002","Pembina Tk. I / IV b","Kepala Madrasah","MTsN 1 Cirebon","Kementerian Agama Kabupaten Cirebon","Drs. H. MUJAYIN, M.Pd.I","19650624 199303 1 005","Pembina Tk. I / IV b","Kepala Kantor","Kementerian Agama Kabupaten Cirebon"]
[{"$nulls":5},"Kementerian Agama Kabupaten Cirebon","Dr. H. ADIB, M.Ag.","19740515 199803 1 003","Pembina Tk. I / IV b","Kepala Kantor Wilayah","Kementerian Agama Provinsi Jawa Barat"]
[{"$nulls":5},"Kementerian Agama Provinsi Jawa Barat","Dr. H. ADIB, M.Ag.","19740515 199803 1 003","Pembina Tk. I / IV b","Kepala Kantor Wilayah","Kementerian Agama Provinsi Jawa Barat"]

{"sheet":"Menu","index":1,"n_rows":38,"n_cols":4,"rows_kept":38,"merged":[[1,1,1,3],[2,1,2,3],[3,1,3,3],[5,1,5,3],[35,0,36,4],[37,0,38,2],[37,3,38,16383]]}
[]
[null,"APLIKASI PENILAIAN KINERJA GURU (PKG)"]
[null,"GURU KELAS / GURU MATA PELAJARAN"]
[null,"::. VERSI MTsN 1 CIREBON .::"]
[]
[null,{"$f":"\"Periode Penilaian : \"&Guru!D44&\" s/d \"&Guru!D46","v":"Periode Penilaian : 1 Januari 2021 s/d 31 Desember 2021"}]
{"$rows_empty":8}
[null,"Nama Penilai",":"]
[]
[null,"N I P",":",{"$f":"IF($D$15=\"\",\"\",(VLOOKUP($D$15,Setting!$A$23:$E$36,2,FALSE)))","v":""}]
[]
[null,"Pangkat/ Gol. Ruang",":",{"$f":"IF($D$15=\"\",\"\",(VLOOKUP($D$15,Setting!$A$23:$E$36,3,FALSE)))","v":""}]
[]
[null,"TMT Pangkat/Gol. Ruang",":",{"$f":"IF($D$15=\"\",\"\",(VLOOKUP($D$15,Setting!$A$23:$E$36,4,FALSE)))","v":""}]
[]
[null,"Jabatan",":",{"$f":"IF($D$15=\"\",\"\",(VLOOKUP($D$15,Setting!$A$23:$E$36,5,FALSE)))","v":""}]
{"$rows_empty":12}
["Silahkan Gunakan Microsoft Office 2010 ke atas dan aktifkan Macro Excel Anda"]
[]
["Modified : Aruel Aryadinatha (Update : 21-09-2021)",null,null,"Created by Lanna Jayana  "]

{"sheet":"Madrasah","index":2,"n_rows":20,"n_cols":4,"rows_kept":20,"merged":[[1,1,3,3],[20,1,20,3]]}
[]
[null,"DATA MADRASAH                                                                                        (Harap diisi dengan lengkap dan benar)"]
[]
[]
[]
[null,"Nama Madrasah",":","MTsN 1 Cirebon"]
[]
[null,"Desa/Kelurahan",":","Babakangebang"]
[]
[null,"Kecamatan",":","Babakan"]
[]
[null,"No. Telp/Fax",":","0231-8840233"]
[]
[null,"Unit Kerja",":","MTsN 1 Cirebon"]
[]
[null,"Nama Kepala Madrasah",":","H. SOIF, S.Ag., M.Pd."]
[]
[null,"N I P",":","19680302 199203 1 002"]
[]
[null,"Pangkat / Gol. Ruang",":","Pembina Tk. I / IV b"]

{"sheet":"Guru","index":3,"n_rows":46,"n_cols":4,"rows_kept":46,"merged":[[1,1,3,3],[47,1,48,3]]}
[]
[null,"DATA GURU YANG DINILAI                                                                                                                                               (Harap diisi dengan lengkap dan benar)"]
[]
[]
[]
[null,"N a m a",":"]
[]
[null,"N I P",":"]
[]
[null,"Tempat, Tanggal Lahir",":"]
[]
[null,"Pangkat/Gol. Ruang",":"]
[]
[null,"TMT Pangkat/Gol. Ruang",":"]
[]
[null,"Jabatan",":",{"$f":"VLOOKUP(D12,Setting!$A$2:$B$15,2,FALSE)","v":{"$error":"#N/A"}}]
[]
[null,"Jenis Guru",":"]
[]
[null,"Tugas Tambahan",":"]
[]
[null,"No. Seri Karpeg",":"]
[]
[null,"N U P T K",":"]
[]
[null,"N R G",":"]
[]
[null,"Tanggal mulai mengajar di madrasah ini",":"]
[]
[null,"TMT Sebagai Guru",":"]
[]
[null,"Masa Kerja",":"]
[]
[null,"Jenis Kelamin",":"]
[]
[null,"Pendidikan Terakhir",":"]
[]
[null,"Program Studi/Jurusan",":"]
[]
[null,"Mata Pelajaran Yang Diampu",":"]
[]
[null,"Tanggal Proses PKG",":"]
[]
[null,"Tanggal Mulai Periode PKG",":","1 Januari 2021"]
[]
[null,"Tanggal Akhir Periode PKG",":","31 Desember 2021"]

{"sheet":"Cover PK Guru","index":4,"n_rows":47,"n_cols":8,"rows_kept":47,"merged":[[5,2,5,11],[6,2,6,11],[7,2,8,11],[9,2,9,11],[27,7,27,10],[28,7,28,10],[29,7,29,10],[30,7,30,10],[31,7,31,10],[32,7,32,10],[33,7,33,10],[34,7,34,10],[35,7,35,10],[36,7,36,10],[42,2,42,11],[43,2,43,11],[44,2,44,11],[45,2,45,11],[46,2,46,11]]}
[]
[]
[]
[]
[]
[null,null,"PENILAIAN KINERJA GURU (PKG)"]
[null,null,{"$f":"\"(\"&(UPPER(Guru!$D$18))&\")\"","v":"()"}]
[null,null,{"$f":"\"Periode Penilaian : \"&Guru!D44&\" s/d \"&Guru!D46","v":"Periode Penilaian : 1 Januari 2021 s/d 31 Desember 2021"}]
{"$rows_empty":19}
[{"$nulls":3},"N a m a",null,null,":",{"$f":"Guru!$D$6","v":0}]
[{"$nulls":3},"N I P",null,null,":",{"$f":"Guru!$D$8","v":0}]
[{"$nulls":3},"N U P T K",null,null,":",{"$f":"Guru!$D$24","v":0}]
[{"$nulls":3},"Pangkat/Gol. Ruang",null,null,":",{"$f":"Guru!$D$12","v":0}]
[{"$nulls":3},"Jabatan",null,null,":",{"$f":"Guru!$D$16","v":{"$error":"#N/A"}}]
[{"$nulls":3},"Jenis Guru",null,null,":",{"$f":"Guru!$D$18","v":0}]
[{"$nulls":3},"Mengajar",null,null,":",{"$f":"Guru!$D$40","v":0}]
[{"$nulls":3},"Tempat Tugas",null,null,":",{"$f":"Madrasah!$D$6","v":"MTsN 1 Cirebon"}]
[{"$nulls":3},"Unit Kerja",null,null,":",{"$f":"IF((LEFT(Madrasah!$D$14,17))=\"Kementerian Agama\",\"Kementerian Agama\",(IF((LEFT(Madrasah!$D$14,7))=\"Kemenag\",\"Kementerian Agama\",Madrasah!$D$14)))","v":"MTsN 1 Cirebon"}]
[{"$nulls":7},{"$f":"IF(H36=\"Kementerian Agama\",\"Kantor Kabupaten Cirebon\",\"\")","v":""}]
[]
[]
[]
[]
[]
[null,null,"KEMENTERIAN AGAMA REPUBLIK INDONESIA"]
[null,null,"KANTOR KEMENTERIAN AGAMA KABUPATEN CIREBON"]
[null,null,"Jalan Sunan Drajat No. 5 Komplek Perkantoran Sumber Cirebon – 45611"]
[null,null,"Telp. (0231) 321254 Fax. (0231) 325405, 321275, 8330579"]
[null,null,"e-mail : kemagcirebon@gmail.com"]

{"sheet":"Penilaian PK Guru","index":5,"n_rows":483,"n_cols":14,"rows_kept":483,"merged":[[1,1,1,10],[1,13,1,18],[2,1,2,10],[3,1,5,1],[3,2,5,7],[3,8,3,10],[6,2,6,7],[7,2,7,7],[8,2,8,7],[9,2,9,7],[10,2,10,7],[11,2,11,7],[12,1,12,7],[12,8,12,10],[13,1,13,7],[13,8,13,10],[14,1,14,7],[14,8,14,10],[15,1,15,7],[15,8,15,10],[37,1,37,10],[38,1,38,10],[39,1,41,1],[39,2,41,7],[39,8,39,10],[42,2,42,7],[43,2,43,7],[44,2,44,7],[45,2,45,7],[46,2,46,7],[47,2,47,7],[48,1,48,7],[48,8,48,10],[49,1,49,7],[49,8,49,10],[50,1,50,7],[50,8,50,10],[51,1,51,7],[51,8,51,10],[70,1,70,10],[71,1,71,10],[72,1,74,1],[72,2,74,7],[72,8,72,10],[75,2,75,7],[76,2,76,7],[77,2,77,7],[78,2,78,7],[79,1,79,7],[79,8,79,10],[80,1,80,7],[80,8,80,10],[81,1,81,7],[81,8,81,10],[82,1,82,7],[82,8,82,10],[109,1,109,10],[110,1,110,10],[111,1,113,1],[111,2,113,7],[111,8,111,10],[114,2,114,7],[115,2,115,7],[116,2,116,7],[117,2,117,7],[118,2,118,7],[119,2,119,7],[120,2,120,7],[121,2,121,7],[122,2,122,7],[123,2,123,7],[124,2,124,7],[125,1,125,7],[125,8,125,10],[126,1,126,7],[126,8,126,10],[127,1,127,7],[127,8,127,10],[128,1,128,7],[128,8,128,10],[131,1,131,10],[132,1,132,10],[133,1,135,1],[133,2,135,7],[133,8,133,10],[136,2,136,7],[137,2,137,7],[138,2,138,7],[139,2,139,7],[140,2,140,7],[141,2,141,7],[142,2,142,7],[143,1,143,7],[143,8,143,10],[144,1,144,7],[144,8,144,10],[145,1,145,7],[145,8,145,10],[146,1,146,7],[146,8,146,10],[165,1,165,10],[166,1,166,10],[167,1,169,1],[167,2,169,7],[167,8,167,10],[170,2,170,7],[171,2,171,7],[172,2,172,7],[173,2,173,7],[174,2,174,7],[175,2,175,7],[176,1,176,7],[176,8,176,10],[177,1,177,7],[177,8,177,10],[178,1,178,7],[178,8,178,10],[179,1,179,7],[179,8,179,10],[198,1,198,10],[199,1,199,10],[200,1,202,1],[200,2,202,7],[200,8,200,10],[203,2,203,7],[204,2,204,7],[205,2,205,7],[206,2,206,7],[207,2,207,7],[208,1,208,7],[208,8,208,10],[209,1,209,7],[209,8,209,10],[210,1,210,7],[210,8,210,10],[211,1,211,7],[211,8,211,10],[232,1,232,10],[233,1,233,10],[234,1,236,1],[234,2,236,7],[234,8,234,10],[237,2,237,7],[238,2,238,7],[239,2,239,7],[240,2,240,7],[241,2,241,7],[242,1,242,7],[242,8,242,10],[243,1,243,7],[243,8,243,10],[244,1,244,7],[244,8,244,10],[245,1,245,7],[245,8,245,10],[272,1,272,10],[273,1,273,10],[274,1,276,1],[274,2,276,7],[274,8,274,10],[277,2,277,7],[278,2,278,7],[279,2,279,7],[280,2,280,7],[281,2,281,7],[282,1,282,7],[282,8,282,10],[283,1,283,7],[283,8,283,10],[284,1,284,7],[284,8,284,10],[285,1,285,7],[285,8,285,10],[309,1,309,10],[310,1,310,10],[311,1,313,1],[311,2,313,7],[311,8,311,10],[314,2,314,7],[315,2,315,7],[316,2,316,7],[317,2,317,7],[318,2,318,7],[319,2,319,7],[320,2,320,7],[321,2,321,7],[322,1,322,7],[322,8,322,10],[323,1,323,7],[323,8,323,10],[324,1,324,7],[324,8,324,10],[325,1,325,7],[325,8,325,10],[341,1,341,10],[342,1,342,10],[343,1,345,1],[343,2,345,7],[343,8,343,10],[346,2,346,7],[347,2,347,7],[348,2,348,7],[349,1,349,7],[349,8,349,10],[350,1,350,7],[350,8,350,10],[351,1,351,7],[351,8,351,10],[352,1,352,7],[352,8,352,10],[381,1,381,10],[382,1,382,10],[383,1,385,1],[383,2,385,7],[383,8,383,10],[386,2,386,7],[387,2,387,7],[388,2,388,7],[389,1,389,7],[389,8,389,10],[390,1,390,7],[390,8,390,10],[391,1,391,7],[391,8,391,10],[392,1,392,7],[392,8,392,10],[420,1,420,10],[421,1,421,10],[422,1,424,1],[422,2,424,7],[422,8,422,10],[425,2,425,7],[426,2,426,7],[427,2,427,7],[428,1,428,7],[428,8,428,10],[429,1,429,7],[429,8,429,10],[430,1,430,7],[430,8,430,10],[431,1,431,7],[431,8,431,10],[459,1,459,10],[460,1,460,10],[461,1,463,1],[461,2,463,7],[461,8,461,10],[464,2,464,7],[465,2,465,7],[466,2,466,7],[467,2,467,7],[468,2,468,7],[469,2,469,7],[470,1,470,7],[470,8,470,10],[471,1,471,7],[471,8,471,10],[472,1,472,7],[472,8,472,10],[473,1,473,7],[473,8,473,10],[475,1,475,10],[477,1,477,4],[477,5,477,7],[477,8,477,10],[481,1,481,4],[481,5,481,7],[481,8,481,10],[482,1,482,4],[482,5,482,7],[482,8,482,10]]}
[]
[null,"PENILAIAN KOMPETENSI 1",{"$nulls":11},"GESER KE BAWAH UNTUK LANJUT MENILAI"]
[null,"Menguasai Karakteristik Peserta Didik"]
[null,"No.","Indikator",{"$nulls":5},"Skor"]
[{"$nulls":8},"Tidak Ada Bukti (Tidak Terpenuhi)","Terpenuhi Sebagian","Seluruhnya Terpenuhi"]
[{"$nulls":8},0,1,2]
[null,{"v":1,"d":"1."},"Guru dapat mengidentifikasi karakteristik belajar setiap peserta didik di kelasnya",{"$nulls":5},{"$f":"IF($M7=1,\"V\",\"\")","v":"V"},{"$f":"IF($M7=2,\"V\",\"\")","v":""},{"$f":"IF($M7=3,\"V\",\"\")","v":""},null,1]
[null,{"v":2,"d":"2."},"Guru memastikan bahwa semua peserta didik mendapatkan kesempatan yang sama untuk berpartisipasi aktif dalam kegiatan pembelajaran",{"$nulls":5},"V","","",null,1]
[null,{"v":3,"d":"3."},"Guru dapat mengatur kelas untuk memberikan kesempatan belajar yang sama pada semua peserta didik dengan kelainan fisik dan kemampuan belajar yang berbeda",{"$nulls":5},"V","","",null,1]
[null,{"v":4,"d":"4."},"Guru mencoba mengetahui penyebab penyimpangan perilaku peserta didik untuk mencegah agar perilaku tersebut tidak merugikan peserta didik lainnya",{"$nulls":5},"V","","",null,1]
[null,{"v":5,"d":"5."},"Guru membantu mengembangkan potensi dan mengatasi kekurangan peserta didik",{"$nulls":5},"V","","",null,1]
[null,{"v":6,"d":"6."},"Guru memperhatikan peserta didik dengan kelemahan fisik tertentu agar dapat mengikuti aktivitas pembelajaran, sehingga peserta didik tersebut tidak termarginalkan (tersisihkan, diolok- olok, minder, dsb.)",{"$nulls":5},"V","","",null,1]
[null,"Total skor untuk kompetensi 1",{"$nulls":6},{"$f":"((COUNTIF(K7:K12,\"V\"))*2)+(COUNTIF(J7:J12,\"V\"))","v":0}]
[null,"Skor maksimum kompetensi 1 = jumlah indikator × 2",{"$nulls":6},12]
[null,"Persentase = (total skor/12) × 100%",{"$nulls":6},{"$f":"(I13/I14)*100","v":0}]
[null,"Nilai untuk kompetensi 1\n(0% < X ≤ 25% = 1; 25% < X ≤ 50% = 2;\n50% < X ≤ 75% = 3; 75% < X ≤ 100% = 4)",{"$nulls":6},{"$f":"IF(I15>75,\"4\",IF(I15>50,\"3\",IF(I15>25,\"2\",\"1\")))","v":"1"}]
{"$rows_empty":21}
[null,"PENILAIAN KOMPETENSI 2"]
[null,"Menguasai teori belajar dan prinsip-prinsip pembelajaran yang mendidik"]
[null,"No.","Indikator",{"$nulls":5},"Skor"]
[{"$nulls":8},"Tidak Ada Bukti (Tidak Terpenuhi)","Terpenuhi Sebagian","Seluruhnya Terpenuhi"]
[{"$nulls":8},0,1,2]
[null,{"v":1,"d":"1."},"Guru memberi kesempatan kepada peserta didik untuk menguasai materi pembelajaran sesuai usia dan kemampuannya belajarnya melalui pengaturan proses pembelajaran dan aktivitas yang bervariasi",{"$nulls":5},{"$f":"IF($M43=1,\"V\",\"\")","v":"V"},{"$f":"IF($M43=2,\"V\",\"\")","v":""},{"$f":"IF($M43=3,\"V\",\"\")","v":""},null,1]
[null,{"v":2,"d":"2."},"Guru selalu memastikan tingkat pemahaman peserta didik terhadap materi pembelajaran tertentu dan menyesuaikan aktivitas pembelajaran berikutnya berdasarkan tingkat pemahaman tersebut",{"$nulls":5},"V","","",null,1]
[null,{"v":3,"d":"3."},"Guru dapat menjelaskan alasan pelaksanaan kegiatan / aktivitas yang dilakukannya, baik yang sesuai maupun yang berbeda dengan rencana, terkait keberhasilan pembelajaran",{"$nulls":5},"V","","",null,1]
[null,{"v":4,"d":"4."},"Guru menggunakan berbagai teknik untuk memotiviasi kemauan belajar peserta didik",{"$nulls":5},"V","","",null,1]
[null,{"v":5,"d":"5."},"Guru merencanakan kegiatan pembelajaran yangsaling terkait satu sama lain, dengan memperhatikan tujuan pembelajaran maupun proses belajar peserta didik",{"$nulls":5},"V","","",null,1]
[null,{"v":6,"d":"6."},"Guru memperhatikan respon peserta didik yang belum / kurang memahami materi pembelajaran yang diajarkan dan menggunakannya untuk memperbaiki rancangan pembelajaran berikutnya",{"$nulls":5},"V","","",null,1]
[null,"Total skor untuk kompetensi 2",{"$nulls":6},{"$f":"((COUNTIF(K43:K48,\"V\"))*2)+(COUNTIF(J43:J48,\"V\"))","v":0}]
[null,"Skor maksimum kompetensi 2 = jumlah indikator × 2",{"$nulls":6},12]
[null,"Persentase = (total skor/12) × 100%",{"$nulls":6},{"$f":"(I49/I50)*100","v":0}]
[null,"Nilai untuk kompetensi 2\n(0% < X ≤ 25% = 1; 25% < X ≤ 50% = 2;\n50% < X ≤ 75% = 3; 75% < X ≤ 100% = 4)",{"$nulls":6},{"$f":"IF(I51>75,\"4\",IF(I51>50,\"3\",IF(I51>25,\"2\",\"1\")))","v":"1"}]
{"$rows_empty":18}
[null,"PENILAIAN KOMPETENSI 3"]
[null,"Pengembangan Kurikulum"]
[null,"No.","Indikator",{"$nulls":5},"Skor"]
[{"$nulls":8},"Tidak Ada Bukti (Tidak Terpenuhi)","Terpenuhi Sebagian","Seluruhnya Terpenuhi"]
[{"$nulls":8},0,1,2]
[null,{"v":1,"d":"1."},"Guru dapat menyusun silabus yang sesuai dengan kurikulum",{"$nulls":5},{"$f":"IF($M76=1,\"V\",\"\")","v":"V"},{"$f":"IF($M76=2,\"V\",\"\")","v":""},{"$f":"IF($M76=3,\"V\",\"\")","v":""},null,1]
[null,{"v":2,"d":"2."},"Guru merancang rencana pembelajaran yang sesuai dengan silabus untuk membahas materi ajar tertentu agar peserta didik dapat mencapai kompetensi dasar yang ditetapkan",{"$nulls":5},"V","","",null,1]
[null,{"v":3,"d":"3."},"Guru mengikuti urutan materi pembelajaran dengan memperhatikan tujuan pembelajaran",{"$nulls":5},"V","","",null,1]
[null,{"v":4,"d":"4."},"Guru memilih materi pembelajaran yang : a) sesuai dengan tujuan pembelajaran; b) tepat dan mutakhir; c) sesuai dengan usia dan tingkat kemampuan belajar peserta didik; d) dapat dilaksanakan di kelas; e.) sesuai dengan konteks kehidupan sehari-hari peserta didik",{"$nulls":5},"V","","",null,1]
[null,"Total skor untuk kompetensi 3",{"$nulls":6},{"$f":"((COUNTIF(K76:K79,\"V\"))*2)+(COUNTIF(J76:J79,\"V\"))","v":0}]
[null,"Skor maksimum kompetensi 3 = jumlah indikator × 2",{"$nulls":6},8]
[null,"Persentase = (total skor/8) × 100%",{"$nulls":6},{"$f":"(I80/I81)*100","v":0}]
[null,"Nilai untuk kompetensi 3\n(0% < X ≤ 25% = 1; 25% < X ≤ 50% = 2;\n50% < X ≤ 75% = 3; 75% < X ≤ 100% = 4)",{"$nulls":6},{"$f":"IF(I82>75,\"4\",IF(I82>50,\"3\",IF(I82>25,\"2\",\"1\")))","v":"1"}]
{"$rows_empty":26}
[null,"PENILAIAN KOMPETENSI 4"]
[null,"Kegiatan pembelajaran yang mendidik"]
[null,"No.","Indikator",{"$nulls":5},"Skor"]
[{"$nulls":8},"Tidak Ada Bukti (Tidak Terpenuhi)","Terpenuhi Sebagian","Seluruhnya Terpenuhi"]
[{"$nulls":8},0,1,2]
[null,{"v":1,"d":"1."},"Guru melaksanakan aktivitas pembelajaran sesuai dengan rancangan yang telah disusun secara lengkap dan pelaksanaan aktivitas tersebut mengindikasikan bahwa guru mengerti tentang tujuannya",{"$nulls":5},{"$f":"IF($M115=1,\"V\",\"\")","v":"V"},{"$f":"IF($M115=2,\"V\",\"\")","v":""},{"$f":"IF($M115=3,\"V\",\"\")","v":""},null,1]
[null,{"v":2,"d":"2."},"Guru melaksanakan aktivitas pembelajaran yang bertujuan untuk membantu proses belajar peserta didik, bukan untuk menguji sehingga membuat peserta didik merasa tertekan",{"$nulls":5},"V","","",null,1]
[null,{"v":3,"d":"3."},"Guru mengkomunikasikan informasi baru (misalnya materi tambahan) sesuai dengan usia dan tingkat kemampuan belajar peserta didik",{"$nulls":5},"V","","",null,1]
[null,{"v":4,"d":"4."},"Guru menyikapi kesalahan yang dilakukan peserta didik sebagai tahapan proses pembelajaran, bukan semata-mata kesalahan yang harus dikoreksi. Misalnya: dengan mengetahui terlebih dahulu peserta didik lain yang setuju atau tidak setuju dengan jawaban tersebut, sebelum memberikan penjelasan tentang jawaban yang benar",{"$nulls":5},"V","","",null,1]
[null,{"v":5,"d":"5."},"Guru melaksanakan kegiatan pembelajaran sesuai isi kurikulum dan mengkaitkannya dengan konteks kehidupan sehari-hari peserta didik",{"$nulls":5},"V","","",null,1]
[null,{"v":6,"d":"6."},"Guru melakukan aktivitas pembelajaran secara bervariasi dengan waktu yang cukup untuk kegiatan pembelajaran yang sesuai dengan usia dan tingkat kemampuan belajar dan mempertahankan perhatian peserta didik",{"$nulls":5},"V","","",null,1]
[null,{"v":7,"d":"7."},"Guru mengelola kelas dengan efektif tanpa mendominasi atau sibuk dengan kegiatannya sendiri agar semua waktu peserta dapat termanfaatkan secara produktif",{"$nulls":5},"V","","",null,1]
[null,{"v":8,"d":"8."},"Guru mampu menyesuaikan aktivitas pembelajaran yang dirancang dengan kondisi kelas",{"$nulls":5},"V","","",null,1]
[null,{"v":9,"d":"9."},"Guru memberikan banyak kesempatan kepada peserta didik untuk bertanya, mempraktekkan dan berinteraksi dengan peserta didik lain",{"$nulls":5},"V","","",null,1]
[null,{"v":10,"d":"10."},"Guru mengatur pelaksanaan aktivitas pembelajaran secara sistematis untuk membantu proses belajar peserta didik. Sebagai contoh : guru menambah informasi baru setelah mengevaluasi pemahaman peserta didik terhadap materi sebelumnya",{"$nulls":5},"V","","",null,1]
[null,{"v":11,"d":"11."},"Guru menggunakan alat bantu mengajar, dan / atau audio-visual (termasuk TIK) untuk meningkatkan motivasi belajar peserta didik dalam mencapai tujuan pembelajaran",{"$nulls":5},"V","","",null,1]
[null,"Total skor untuk kompetensi 4",{"$nulls":6},{"$f":"((COUNTIF(K115:K125,\"V\"))*2)+(COUNTIF(J115:J125,\"V\"))","v":0}]
[null,"Skor maksimum kompetensi 4 = jumlah indikator × 2",{"$nulls":6},22]
[null,"Persentase = (total skor/22) × 100%",{"$nulls":6},{"$f":"(I126/I127)*100","v":0}]
[null,"Nilai untuk kompetensi 4\n(0% < X ≤ 25% = 1; 25% < X ≤ 50% = 2;\n50% < X ≤ 75% = 3; 75% < X ≤ 100% = 4)",{"$nulls":6},{"$f":"IF(I128>75,\"4\",IF(I128>50,\"3\",IF(I128>25,\"2\",\"1\")))","v":"1"}]
[]
[]
[null,"PENILAIAN KOMPETENSI 5"]
[null,"Pengembangan potensi peserta didik"]
[null,"No.","Indikator",{"$nulls":5},"Skor"]
[{"$nulls":8},"Tidak Ada Bukti (Tidak Terpenuhi)","Terpenuhi Sebagian","Seluruhnya Terpenuhi"]
[{"$nulls":8},0,1,2]
[null,{"v":1,"d":"1."},"Guru menganalisis hasil belajar berdasarkan segala bentuk penilaian terhadap setiap peserta didik untuk mengetahui tingkat kemajuan masing-masing",{"$nulls":5},{"$f":"IF($M137=1,\"V\",\"\")","v":"V"},{"$f":"IF($M137=2,\"V\",\"\")","v":""},{"$f":"IF($M137=3,\"V\",\"\")","v":""},null,1]
[null,{"v":2,"d":"2."},"Guru merancang dan melaksanakan aktivitas pembelajaran yang mendorong peserta didik untuk belajar sesuai dengan kecakapan dan pola belajar masing-masing",{"$nulls":5},"V","","",null,1]
[null,{"v":3,"d":"3."},"Guru merancang dan melaksanakan aktivitas pembelajaran untuk memunculkan daya kreativitas dan kemampuan berfikir kritis peserta didik",{"$nulls":5},"V","","",null,1]
[null,{"v":4,"d":"4."},"Guru secara aktif membantu peserta didik dalam proses pembelajaran dengan memberikan perhatian kepada setiap individu",{"$nulls":5},"V","","",null,1]
[null,{"v":5,"d":"5."},"Guru dapat mengidentifikasi dengan benar tentang bakat, minat, potensi, dan kesulitan belajar masing-masing peserta didik",{"$nulls":5},"V","","",null,1]
[null,{"v":6,"d":"6."},"Guru memberikan kesempatan belajar kepada peserta didik sesuai dengan cara belajarnya masing-masing",{"$nulls":5},"V","","",null,1]
[null,{"v":7,"d":"7."},"Guru memusatkan perhatian pada interaksi dengan peserta didik dan mendorongnya untuk memahami dan menggunakan informasi yang disampaikan",{"$nulls":5},"V","","",null,1]
[null,"Total skor untuk kompetensi 5",{"$nulls":6},{"$f":"((COUNTIF(K137:K143,\"V\"))*2)+(COUNTIF(J137:J143,\"V\"))","v":0}]
[null,"Skor maksimum kompetensi 5 = jumlah indikator × 2",{"$nulls":6},14]
[null,"Persentase = (total skor/14) × 100%",{"$nulls":6},{"$f":"(I144/I145)*100","v":0}]
[null,"Nilai untuk kompetensi 5\n(0% < X ≤ 25% = 1; 25% < X ≤ 50% = 2;\n50% < X ≤ 75% = 3; 75% < X ≤ 100% = 4)",{"$nulls":6},{"$f":"IF(I146>75,\"4\",IF(I146>50,\"3\",IF(I146>25,\"2\",\"1\")))","v":"1"}]
{"$rows_empty":18}
[null,"PENILAIAN KOMPETENSI 6"]
[null,"Komunikasi dengan peserta didik"]
[null,"No.","Indikator",{"$nulls":5},"Skor"]
[{"$nulls":8},"Tidak Ada Bukti (Tidak Terpenuhi)","Terpenuhi Sebagian","Seluruhnya Terpenuhi"]
[{"$nulls":8},0,1,2]
[null,{"v":1,"d":"1."},"Guru menggunakan pertanyaan untuk mengetahui pemahaman & menjaga partisipasi peserta didik, termasuk memberikan pertanyaan terbuka yang menuntut peserta didik untuk menjawab dengan ide dan pengetahuan mereka",{"$nulls":5},{"$f":"IF($M171=1,\"V\",\"\")","v":"V"},{"$f":"IF($M171=2,\"V\",\"\")","v":""},{"$f":"IF($M171=3,\"V\",\"\")","v":""},null,1]
[null,{"v":2,"d":"2."},"Guru memberikan perhatian dan mendengarkan semua pertanyaan dan tanggapan peserta didik, tanpa menginterupsi, kecuali jika diperlukan untuk membantu atau mengklarifikasi pertanyaan/tanggapan tersebut",{"$nulls":5},"V","","",null,1]
[null,{"v":3,"d":"3."},"Guru menanggapinya pertanyaan peserta didik secara tepat, benar, dan mutakhir, sesuai tujuan pembelajaran dan isi kurikulum, tanpa mempermalukannya",{"$nulls":5},"V","","",null,1]
[null,{"v":4,"d":"4."},"Guru menyajikan kegiatan pembelajaran yang dapat menumbuhkan kerja sama yang baik antar peserta didik",{"$nulls":5},"V","","",null,1]
[null,{"v":5,"d":"5."},"Guru mendengarkan dan memberikan perhatian terhadap semua jawaban peserta didik baik yang benar maupun yang dianggap salah untuk mengukur tingkat pemahaman peserta didik",{"$nulls":5},"V","","",null,1]
[null,{"v":6,"d":"6."},"Guru memberikan perhatian terhadap pertanyaan peserta didik dan meresponnya secara lengkap dan relevan untuk menghilangkan kebingungan pada peserta didik",{"$nulls":5},"V","","",null,1]
[null,"Total skor untuk kompetensi 6",{"$nulls":6},{"$f":"((COUNTIF(K171:K176,\"V\"))*2)+(COUNTIF(J171:J176,\"V\"))","v":0}]
[null,"Skor maksimum kompetensi 6 = jumlah indikator × 2",{"$nulls":6},12]
[null,"Persentase = (total skor/12) × 100%",{"$nulls":6},{"$f":"(I177/I178)*100","v":0}]
[null,"Nilai untuk kompetensi 6\n(0% < X ≤ 25% = 1; 25% < X ≤ 50% = 2;\n50% < X ≤ 75% = 3; 75% < X ≤ 100% = 4)",{"$nulls":6},{"$f":"IF(I179>75,\"4\",IF(I179>50,\"3\",IF(I179>25,\"2\",\"1\")))","v":"1"}]
{"$rows_empty":18}
[null,"PENILAIAN KOMPETENSI 7"]
[null,"Penilaian dan evaluasi"]
[null,"No.","Indikator",{"$nulls":5},"Skor"]
[{"$nulls":8},"Tidak Ada Bukti (Tidak Terpenuhi)","Terpenuhi Sebagian","Seluruhnya Terpenuhi"]
[{"$nulls":8},0,1,2]
[null,{"v":1,"d":"1."},"Guru menyusun alat penilaian yang sesuai dengan tujuan pembelajaran untuk mencapai kompetensi tertentu seperti yang tertulis dalam RPP",{"$nulls":5},{"$f":"IF($M204=1,\"V\",\"\")","v":"V"},{"$f":"IF($M204=2,\"V\",\"\")","v":""},{"$f":"IF($M204=3,\"V\",\"\")","v":""},null,1]
[null,{"v":2,"d":"2."},"Guru melaksanakan penilaian dengan berbagai teknik dan jenis penilaian, selain penilaian formal yang dilaksanakan sekolah, dan mengumumkan hasil serta implikasinya kepada peserta didik, tentang tingkat pemahaman terhadap materi pembelajaran yang telah dan akan dipelajari",{"$nulls":5},"V","","",null,1]
[null,{"v":3,"d":"3."},"Guru menganalisis hasil penilaian untuk mengidentifikasi topik / kompetensi dasar yang sulit sehingga diketahui kekuatan dan kelemahan masing-masing peserta didik untuk keperluan remedial dan pengayaan",{"$nulls":5},"V","","",null,1]
[null,{"v":4,"d":"4."},"Guru memanfaatkan masukan dari peserta didik dan merefleksikannya untuk meningkatkan pembelajaran selanjutnya, dan dapat membuktikannya melalui catatan, jurnal pembelajaran, rancangan pembelajaran, materi tambahan, dan sebagainya",{"$nulls":5},"V","","",null,1]
[null,{"v":5,"d":"5."},"Guru memanfatkan hasil penilaian sebagai bahan penyusunan rancangan pembelajaran yang akan dilakukan selanjutnya",{"$nulls":5},"V","","",null,1]
[null,"Total skor untuk kompetensi 7",{"$nulls":6},{"$f":"((COUNTIF(K204:K208,\"V\"))*2)+(COUNTIF(J204:J208,\"V\"))","v":0}]
[null,"Skor maksimum kompetensi 7 = jumlah indikator × 2",{"$nulls":6},10]
[null,"Persentase = (total skor/10) × 100%",{"$nulls":6},{"$f":"(I209/I210)*100","v":0}]
[null,"Nilai untuk kompetensi 7\n(0% < X ≤ 25% = 1; 25% < X ≤ 50% = 2;\n50% < X ≤ 75% = 3; 75% < X ≤ 100% = 4)",{"$nulls":6},{"$f":"IF(I211>75,\"4\",IF(I211>50,\"3\",IF(I211>25,\"2\",\"1\")))","v":"1"}]
{"$rows_empty":20}
[null,"PENILAIAN KOMPETENSI 8"]
[null,"Bertindak sesuai dengan norma agama, hukum, sosial, dan kebudayaan nasional"]
[null,"No.","Indikator",{"$nulls":5},"Skor"]
[{"$nulls":8},"Tidak Ada Bukti (Tidak Terpenuhi)","Terpenuhi Sebagian","Seluruhnya Terpenuhi"]
[{"$nulls":8},0,1,2]
[null,{"v":1,"d":"1."},"Guru menghargai dan mempromosikan prinsip-prinsip Pancasila sebagai dasar ideologi dan etika bagi semua warga Indonesia",{"$nulls":5},{"$f":"IF($M238=1,\"V\",\"\")","v":"V"},{"$f":"IF($M238=2,\"V\",\"\")","v":""},{"$f":"IF($M238=3,\"V\",\"\")","v":""},null,1]
[null,{"v":2,"d":"2."},"Guru mengembangkan kerjasama dan membina kebersamaan dengan teman sejawat tanpa memperhatikan perbedaan yang ada (misalnya: suku, agama, dan gender)",{"$nulls":5},"V","","",null,1]
[null,{"v":3,"d":"3."},"Guru saling menghormati dan menghargai teman sejawat sesuai dengan kondisi dan keberadaan masing-masing",{"$nulls":5},"V","","",null,1]
[null,{"v":4,"d":"4."},"Guru memiliki rasa persatuan dan kesatuan sebagai bangsa Indonesia",{"$nulls":5},"V","","",null,1]
[null,{"v":5,"d":"5."},"Guru mempunyai pandangan yang luas tentang keberagaman bangsa Indonesia (misalnya: budaya, suku, agama)",{"$nulls":5},"V","","",null,1]
[null,"Total skor untuk kompetensi 8",{"$nulls":6},{"$f":"((COUNTIF(K238:K242,\"V\"))*2)+(COUNTIF(J238:J242,\"V\"))","v":0},{"$nulls":3},0]
[null,"Skor maksimum kompetensi 8 = jumlah indikator × 2",{"$nulls":6},10]
[null,"Persentase = (total skor/10) × 100%",{"$nulls":6},{"$f":"(I243/I244)*100","v":0}]
[null,"Nilai untuk kompetensi 8\n(0% < X ≤ 25% = 1; 25% < X ≤ 50% = 2;\n50% < X ≤ 75% = 3; 75% < X ≤ 100% = 4)",{"$nulls":6},{"$f":"IF(I245>75,\"4\",IF(I245>50,\"3\",IF(I245>25,\"2\",\"1\")))","v":"1"}]
{"$rows_empty":26}
[null,"PENILAIAN KOMPETENSI 9"]
[null,"Menunjukan pribadi yang dewasa dan teladan"]
[null,"No.","Indikator",{"$nulls":5},"Skor"]
[{"$nulls":8},"Tidak Ada Bukti (Tidak Terpenuhi)","Terpenuhi Sebagian","Seluruhnya Terpenuhi"]
[{"$nulls":8},0,1,2]
[null,{"v":1,"d":"1."},"Guru bertingkah laku sopan dalam berbicara, berpenampilan, dan berbuat terhadap semua peserta didik, orang tua, dan teman sejawat",{"$nulls":5},{"$f":"IF($M278=1,\"V\",\"\")","v":"V"},{"$f":"IF($M278=2,\"V\",\"\")","v":""},{"$f":"IF($M278=3,\"V\",\"\")","v":""},null,1]
[null,{"v":2,"d":"2."},"Guru mau membagi pengalamannya dengan teman sejawat, termasuk mengundang mereka untuk mengobservasi cara mengajarnya dan memberikan masukan",{"$nulls":5},"V","","",null,1]
[null,{"v":3,"d":"3."},"Guru mampu mengelola pembelajaran yang membuktikan bahwa guru dihormati oleh peserta didik, sehingga semua peserta didik selalu memperhatikan guru dan berpartisipasi aktif dalam proses pembelajaran",{"$nulls":5},"V","","",null,1]
[null,{"v":4,"d":"4."},"Guru bersikap dewasa dalam menerima masukan dari peserta didik dan memberikan kesempatan kepada peserta didik untuk berpartisipasi dalam proses pembelajaran",{"$nulls":5},"V","","",null,1]
[null,{"v":5,"d":"5."},"Guru berperilaku baik untuk mencitrakan nama baik sekolah",{"$nulls":5},"V","","",null,1]
[null,"Total skor untuk kompetensi 9",{"$nulls":6},{"$f":"((COUNTIF(K278:K282,\"V\"))*2)+(COUNTIF(J278:J282,\"V\"))","v":0}]
[null,"Skor maksimum kompetensi 9 = jumlah indikator × 2",{"$nulls":6},10]
[null,"Persentase = (total skor/10) × 100%",{"$nulls":6},{"$f":"(I283/I284)*100","v":0}]
[null,"Nilai untuk kompetensi 9\n(0% < X ≤ 25% = 1; 25% < X ≤ 50% = 2;\n50% < X ≤ 75% = 3; 75% < X ≤ 100% = 4)",{"$nulls":6},{"$f":"IF(I285>75,\"4\",IF(I285>50,\"3\",IF(I285>25,\"2\",\"1\")))","v":"1"}]
{"$rows_empty":23}
[null,"PENILAIAN KOMPETENSI 10"]
[null,"Etos kerja, tanggung jawab yang tinggi, rasa bangga menjadi guru"]
[null,"No.","Indikator",{"$nulls":5},"Skor"]
[{"$nulls":8},"Tidak Ada Bukti (Tidak Terpenuhi)","Terpenuhi Sebagian","Seluruhnya Terpenuhi"]
[{"$nulls":8},0,1,2]
[null,{"v":1,"d":"1."},"Guru mengawali dan mengakhiri pembelajaran dengan tepat waktu",{"$nulls":5},{"$f":"IF($M315=1,\"V\",\"\")","v":"V"},{"$f":"IF($M315=2,\"V\",\"\")","v":""},{"$f":"IF($M315=3,\"V\",\"\")","v":""},null,1]
[null,{"v":2,"d":"2."},"Jika guru harus meninggalkan kelas, guru mengaktifkan siswa dengan melakukan hal-hal produktif terkait dengan mata pelajaran, dan meminta guru piket atau guru lain untuk mengawasi kelas",{"$nulls":5},"V","","",null,1]
[null,{"v":3,"d":"3."},"Guru memenuhi jam mengajar dan dapat melakukan semua kegiatan lain di luar jam mengajar berdasarkan ijin dan persetujuan pengelola sekolah",{"$nulls":5},"V","","",null,1]
[null,{"v":4,"d":"4."},"Guru meminta ijin dan memberitahu lebih awal, dengan memberikan alasan dan bukti yang sah jika tidak menghadiri kegiatan yang telah direncanakan, termasuk proses pembelajaran di kelas",{"$nulls":5},"V","","",null,1]
[null,{"v":5,"d":"5."},"Guru menyelesaikan semua tugas administratif dan non-pembelajaran dengan tepat waktu sesuai standar yang ditetapkan",{"$nulls":5},"V","","",null,1]
[null,{"v":6,"d":"6."},"Guru memanfaatkan waktu luang selain mengajar untuk kegiatan yang produktif terkait dengan tugasnya",{"$nulls":5},"V","","",null,1]
[null,{"v":7,"d":"7."},"Guru memberikan kontribusi terhadap pengembangan sekolah dan mempunyai prestasi yang berdampak\npositif terhadap nama baik sekolah",{"$nulls":5},"V","","",null,1]
[null,{"v":8,"d":"8."},"Guru merasa bangga dengan profesinya sebagai guru",{"$nulls":5},"V","","",null,1]
[null,"Total skor untuk kompetensi 10",{"$nulls":6},{"$f":"((COUNTIF(K315:K322,\"V\"))*2)+(COUNTIF(J315:J322,\"V\"))","v":0}]
[null,"Skor maksimum kompetensi 10 = jumlah indikator × 2",{"$nulls":6},16]
[null,"Persentase = (total skor/14) × 100%",{"$nulls":6},{"$f":"(I323/I324)*100","v":0}]
[null,"Nilai untuk kompetensi 10\n(0% < X ≤ 25% = 1; 25% < X ≤ 50% = 2;\n50% < X ≤ 75% = 3; 75% < X ≤ 100% = 4)",{"$nulls":6},{"$f":"IF(I325>75,\"4\",IF(I325>50,\"3\",IF(I325>25,\"2\",\"1\")))","v":"1"}]
{"$rows_empty":15}
[null,"PENILAIAN KOMPETENSI 11"]
[null,"Bersikap inklusif, bertindak obyektif, serta tidak diskriminatif"]
[null,"No.","Indikator",{"$nulls":5},"Skor"]
[{"$nulls":8},"Tidak Ada Bukti (Tidak Terpenuhi)","Terpenuhi Sebagian","Seluruhnya Terpenuhi"]
[{"$nulls":8},0,1,2]
[null,{"v":1,"d":"1."},"Guru memperlakukan semua peserta didik secara adil, memberikan perhatian dan bantuan sesuai kebutuhan masing-masing, tanpa memperdulikan faktor personal",{"$nulls":5},{"$f":"IF($M347=1,\"V\",\"\")","v":"V"},{"$f":"IF($M347=2,\"V\",\"\")","v":""},{"$f":"IF($M347=3,\"V\",\"\")","v":""},null,1]
[null,{"v":2,"d":"2."},"Guru menjaga hubungan baik dan peduli dengan teman sejawat (bersikap insklusif), serta berkonstribusi positif terhadap semua diskusi formal dan informal terkait dengan pekerjaannya",{"$nulls":5},"V","","",null,1]
[null,{"v":3,"d":"3."},"Guru sering berinteraksi dengan peserta didik dan tidak membatasi perhatiannya hanya pada kelompok tertentu (misalnya : peserta didik yang pandai, kaya, berasal dari daerah yang sama dengan guru)",{"$nulls":5},"V","","",null,1]
[null,"Total skor untuk kompetensi 11",{"$nulls":6},{"$f":"((COUNTIF(K347:K349,\"V\"))*2)+(COUNTIF(J347:J349,\"V\"))","v":0}]
[null,"Skor maksimum kompetensi 11 = jumlah indikator × 2",{"$nulls":6},6]
[null,"Persentase = (total skor/8) × 100%",{"$nulls":6},{"$f":"(I350/I351)*100","v":0}]
[null,"Nilai untuk kompetensi 11\n(0% < X ≤ 25% = 1; 25% < X ≤ 50% = 2;\n50% < X ≤ 75% = 3; 75% < X ≤ 100% = 4)",{"$nulls":6},{"$f":"IF(I352>75,\"4\",IF(I352>50,\"3\",IF(I352>25,\"2\",\"1\")))","v":"1"}]
{"$rows_empty":28}
[null,"PENILAIAN KOMPETENSI 12"]
[null,"Komunikasi dengan sesama guru, tenaga kependidikan, orang tua,\npeserta didik dan masyarakat"]
[null,"No.","Indikator",{"$nulls":5},"Skor"]
[{"$nulls":8},"Tidak Ada Bukti (Tidak Terpenuhi)","Terpenuhi Sebagian","Seluruhnya Terpenuhi"]
[{"$nulls":8},0,1,2]
[null,{"v":1,"d":"1."},"Guru menyampaikan informasi tentang kemajuan, kesulitan, dan potensi peserta didik kepada orang tuanya, baik dalam pertemuan formal maupun tidak formal antara guru dan orang tua, teman sejawat, dan dapat menunjukkan buktinya",{"$nulls":5},{"$f":"IF($M387=1,\"V\",\"\")","v":"V"},{"$f":"IF($M387=2,\"V\",\"\")","v":""},{"$f":"IF($M387=3,\"V\",\"\")","v":""},null,1]
[null,{"v":2,"d":"2."},"Guru ikut berperan aktif dalam kegiatan di luar pembelajaran yang diselenggarakan oleh sekolah dan masyarakat dan dapat memberikan bukti keikutsertaannya",{"$nulls":5},"V","","",null,1]
[null,{"v":3,"d":"3."},"Guru memperhatikan sekolah sebagai bagian dari masyarakat, berkomunikasi dengan masyarakat sekitar, serta berperan dalam kegiatan sosial di masyarakat",{"$nulls":5},"V","","",null,1]
[null,"Total skor untuk kompetensi 12",{"$nulls":6},{"$f":"((COUNTIF(K387:K389,\"V\"))*2)+(COUNTIF(J387:J389,\"V\"))","v":0}]
[null,"Skor maksimum kompetensi 12 = jumlah indikator × 2",{"$nulls":6},6]
[null,"Persentase = (total skor/8) × 100%",{"$nulls":6},{"$f":"(I390/I391)*100","v":0}]
[null,"Nilai untuk kompetensi 12\n(0% < X ≤ 25% = 1; 25% < X ≤ 50% = 2;\n50% < X ≤ 75% = 3; 75% < X ≤ 100% = 4)",{"$nulls":6},{"$f":"IF(I392>75,\"4\",IF(I392>50,\"3\",IF(I392>25,\"2\",\"1\")))","v":"1"}]
{"$rows_empty":27}
[null,"PENILAIAN KOMPETENSI 13"]
[null,"Penguasaan materi, struktur, kosep dan pola pikir keilmuan yang mendukung                                                                     mata pelajaran yang diampu"]
[null,"No.","Indikator",{"$nulls":5},"Skor"]
[{"$nulls":8},"Tidak Ada Bukti (Tidak Terpenuhi)","Terpenuhi Sebagian","Seluruhnya Terpenuhi"]
[{"$nulls":8},0,1,2]
[null,{"v":1,"d":"1."},"Guru melakukan pemetaan standar kompetensi dan kompetensi dasar untuk mata pelajaran yang diampunya, untuk mengidentifikasi materi pembelajaran yang dianggap sulit, melakukan perencanaan dan pelaksanaan pembelajaran, dan memperkirakan alokasi waktu yang diperlukan",{"$nulls":5},{"$f":"IF($M426=1,\"V\",\"\")","v":"V"},{"$f":"IF($M426=2,\"V\",\"\")","v":""},{"$f":"IF($M426=3,\"V\",\"\")","v":""},null,1]
[null,{"v":2,"d":"2."},"Guru menyertakan informasi yang tepat dan mutakhir di dalam perencanaan dan pelaksanaan pembelajaran",{"$nulls":5},"V","","",null,1]
[null,{"v":3,"d":"3."},"Guru menyusun materi, perencanaan dan pelaksanaan pembelajaran yang berisi informasi yang tepat, mutakhir, dan yang membantu peserta didik untuk memahami konsep materi pembelajaran",{"$nulls":5},"V","","",null,1]
[null,"Total skor untuk kompetensi 13",{"$nulls":6},{"$f":"((COUNTIF(K426:K428,\"V\"))*2)+(COUNTIF(J426:J428,\"V\"))","v":0}]
[null,"Skor maksimum kompetensi 13 = jumlah indikator × 2",{"$nulls":6},6]
[null,"Persentase = (total skor/8) × 100%",{"$nulls":6},{"$f":"(I429/I430)*100","v":0}]
[null,"Nilai untuk kompetensi 13\n(0% < X ≤ 25% = 1; 25% < X ≤ 50% = 2;\n50% < X ≤ 75% = 3; 75% < X ≤ 100% = 4)",{"$nulls":6},{"$f":"IF(I431>75,\"4\",IF(I431>50,\"3\",IF(I431>25,\"2\",\"1\")))","v":"1"}]
{"$rows_empty":27}
[null,"PENILAIAN KOMPETENSI 14"]
[null,"Mengembangkan Keprofesionalan melalui tindakan yang reflektif"]
[null,"No.","Indikator",{"$nulls":5},"Skor"]
[{"$nulls":8},"Tidak Ada Bukti (Tidak Terpenuhi)","Terpenuhi Sebagian","Seluruhnya Terpenuhi"]
[{"$nulls":8},0,1,2]
[null,{"v":1,"d":"1."},"Guru melakukan evaluasi diri secara spesifik, lengkap, dan didukung dengan contoh pengalaman diri sendiri",{"$nulls":5},{"$f":"IF($M465=1,\"V\",\"\")","v":"V"},{"$f":"IF($M465=2,\"V\",\"\")","v":""},{"$f":"IF($M465=3,\"V\",\"\")","v":""},null,1]
[null,{"v":2,"d":"2."},"Guru memiliki jurnal pembelajaran, catatan masukan dari kolega atau hasil penilaian proses pembelajaran sebagai bukti yang menggambarkan kinerjanya",{"$nulls":5},"V","","",null,1]
[null,{"v":3,"d":"3."},"Guru memanfaatkan bukti gambaran kinerjanya untuk mengembangkan perencanaan dan pelaksanaan pembelajaran selanjutnya dalam program Pengembangan Keprofesian Berkelanjutan (PKB)",{"$nulls":5},"V","","",null,1]
[null,{"v":4,"d":"4."},"Guru dapat mengaplikasikan pengalaman PKB dalam perencanaan, pelaksanaan, penilaian pembelajaran dan tindak lanjutnya",{"$nulls":5},"V","","",null,1]
[null,{"v":5,"d":"5."},"Guru melakukan penelitian, mengembangkan karya inovasi, mengikuti kegiatan ilmiah (misalnya seminar, konferensi), dan aktif dalam melaksanakan PKB",{"$nulls":5},"V","","",null,1]
[null,{"v":6,"d":"6."},"Guru dapat memanfaatkan TIK dalam berkomunikasi dan pelaksanaan PKB",{"$nulls":5},"V","","",null,1]
[null,"Total skor untuk kompetensi 14",{"$nulls":6},{"$f":"((COUNTIF(K465:K470,\"V\"))*2)+(COUNTIF(J465:J470,\"V\"))","v":0}]
[null,"Skor maksimum kompetensi 14 = jumlah indikator × 2",{"$nulls":6},12]
[null,"Persentase = (total skor/12) × 100%",{"$nulls":6},{"$f":"(I471/I472)*100","v":0}]
[null,"Nilai untuk kompetensi 14\n(0% < X ≤ 25% = 1; 25% < X ≤ 50% = 2;\n50% < X ≤ 75% = 3; 75% < X ≤ 100% = 4)",{"$nulls":6},{"$f":"IF(I473>75,\"4\",IF(I473>50,\"3\",IF(I473>25,\"2\",\"1\")))","v":"1"}]
[]
[null,{"$f":"Guru!D42","v":"00:00:00"}]
[]
[null,"Guru Yang Dinilai,",{"$nulls":3},"Penilai,",null,null,{"$f":"IF((LEFT(Madrasah!$D$6,2))=\"RA\",\"Kepala RA,\",\"Kepala Madrasah,\")","v":"Kepala Madrasah,"}]
[]
[]
[]
[null,{"$f":"Guru!$D$6","v":0},{"$nulls":3},{"$f":"Menu!$D$15","v":0},null,null,{"$f":"Madrasah!D16","v":"H. SOIF, S.Ag., M.Pd."}]
[null,{"$f":"\"NIP. \"&(IF((Guru!$D$8)=\"-\",\"-                                      \",(Guru!$D$8)))","v":"NIP. "},{"$nulls":3},{"$f":"\"NIP. \"&(IF((Menu!$D$17)=\"-\",\"-                                      \",(Menu!$D$17)))","v":"NIP. "},null,null,{"$f":"\"NIP. \"&(IF((Madrasah!D18)=\"-\",\"-                                      \",(Madrasah!D18)))","v":"NIP. 19680302 199203 1 002"}]

{"sheet":"Lampiran & Rekap PK Guru","index":6,"n_rows":157,"n_cols":20,"rows_kept":157,"merged":[[1,9,1,10],[1,12,3,17],[3,1,3,10],[4,1,4,10],[7,2,7,10],[8,2,8,10],[9,2,9,10],[10,2,10,7],[10,8,10,10],[11,1,11,10],[12,2,12,7],[12,8,12,10],[13,2,13,7],[13,8,13,10],[14,2,14,7],[14,8,14,10],[15,2,15,7],[15,8,15,10],[16,2,16,7],[16,8,16,10],[17,2,17,7],[17,8,17,10],[18,2,18,7],[18,8,18,10],[19,1,19,10],[20,2,20,7],[20,8,20,10],[21,2,21,7],[21,8,21,10],[22,2,22,7],[22,8,22,10],[23,1,23,10],[24,2,24,7],[24,8,24,10],[25,2,25,7],[25,8,25,10],[26,1,26,10],[27,2,27,7],[27,8,27,10],[28,2,28,7],[28,8,28,10],[31,1,31,2],[31,3,31,10],[32,1,32,2],[32,3,32,10],[34,1,34,10],[36,1,36,4],[36,5,36,7],[36,8,36,10],[40,1,40,4],[40,5,40,7],[40,8,40,10],[41,1,41,4],[41,5,41,7],[41,8,41,10],[43,9,43,10],[45,1,45,10],[46,1,46,10],[49,1,49,5],[49,6,49,10],[50,1,50,5],[50,6,50,10],[51,1,51,5],[51,6,51,10],[52,1,52,5],[52,6,52,10],[53,1,53,5],[53,6,53,10],[54,1,54,5],[54,6,54,10],[55,1,55,5],[55,6,55,10],[56,1,56,5],[56,6,56,10],[57,1,57,5],[57,6,57,10],[58,1,58,5],[58,6,58,10],[62,1,62,10],[63,1,63,10],[65,1,66,10],[68,2,68,5],[68,7,68,10],[69,2,69,5],[69,7,69,10],[70,2,70,5],[70,7,70,10],[71,2,71,5],[71,7,71,10],[72,2,72,5],[72,7,72,10],[73,2,73,5],[73,7,73,10],[74,2,74,5],[74,7,74,10],[100,9,100,10],[102,1,102,10],[104,2,104,5],[104,6,104,10],[105,2,105,5],[105,6,105,10],[106,2,106,5],[106,6,106,10],[107,2,107,5],[107,6,107,10],[108,2,108,5],[108,6,108,10],[109,2,109,5],[109,6,109,10],[110,2,110,5],[110,6,110,10],[111,2,111,5],[111,6,111,10],[112,2,112,5],[112,6,112,10],[113,2,113,5],[113,6,113,10],[114,2,114,5],[114,6,114,10],[115,2,115,5],[115,6,115,10],[116,2,116,5],[116,6,116,10],[117,2,117,5],[117,6,117,10],[118,2,118,5],[118,6,118,10],[119,2,119,5],[119,6,119,10],[120,2,120,5],[120,6,120,10],[121,2,121,5],[121,6,121,10],[122,2,122,5],[122,6,122,10],[124,1,124,5],[124,7,124,8],[124,9,126,10],[125,1,125,5],[125,7,125,8],[126,1,126,5],[126,7,126,8],[128,2,128,9],[129,1,129,9],[130,2,130,9],[131,2,131,9],[132,2,132,9],[133,2,133,9],[134,2,134,9],[135,2,135,9],[136,2,136,9],[137,1,137,9],[138,2,138,9],[139,2,139,9],[140,2,140,9],[141,1,141,9],[142,2,142,9],[143,2,143,9],[144,1,144,9],[145,2,145,9],[146,2,146,9],[147,1,147,9],[148,1,148,10],[150,1,150,10],[151,1,151,4],[151,5,151,7],[151,8,151,10],[155,1,155,4],[155,5,155,7],[155,8,155,10],[156,1,156,4],[156,5,156,7],[156,8,156,10]]}
[{"$nulls":19},1]
[{"$nulls":9},"Lampiran 1A",null,null,"GESER KE BAWAH UNTUK MELIHAT REKAP HASIL PENILAIAN PK GURU"]
[]
[null,"LEMBAR PERNYATAAN KOMPETENSI, INDIKATOR,"]
[null,"DAN CARA MENILAI PK GURU KELAS / MATA PELAJARAN"]
[]
[null,"Sumber :"]
[null,"⪧","Peraturan Menteri Pendidikan Nasional No. 16 Tahun 2007 tentang Standar Kualifikasi Akademik dan Kompetensi Guru"]
[null,"⪧","BSNP versi 6.0 11/2008 kerangka indikator untuk pelaporan pencapaian Standar Nasional Pendidikan : Standar Kualifikasi Akademik dan Kompetensi Guru"]
[null,"⪧","Permenegpan dan RB 16/2009 tentang Jabatan Fungsional Guru dan Angka Kreditnya"]
[null,"No.","Kompetensi",{"$nulls":5},"Cara Menilai"]
[null,"A. Pedagogik"]
[null,"1.","Menguasai Karakteristik peserta didik",{"$nulls":5},"Pengamatan & Pemantauan"]
[null,"2.","Menguasai teori belajar dan prinsip-prinsip pembelajaran yang mendidik",{"$nulls":5},"Pengamatan"]
[null,"3.","Pengembangan Kurikulum",{"$nulls":5},"Pengamatan"]
[null,"4.","Kegiatan pembelajaran yang mendidik",{"$nulls":5},"Pengamatan"]
[null,"5.","Pengembangan potensi peserta didik",{"$nulls":5},"Pengamatan & Pemantauan"]
[null,"6.","Komunikasi dengan peserta didik",{"$nulls":5},"Pengamatan"]
[null,"7.","Penilaian dan evaluasi",{"$nulls":5},"Pengamatan"]
[null,"B. Kepribadian"]
[null,"8.","Bertindak sesuai dengan norma agama, hukum, sosial, dan kebudayaan nasional",{"$nulls":5},"Pengamatan & Pemantauan"]
[null,"9.","Menunjukan pribadi yang dewasa dan teladan",{"$nulls":5},"Pengamatan & Pemantauan"]
[null,"10.","Etos kerja, tanggung jawab yang tinggi, rasa bangga menjadi guru",{"$nulls":5},"Pengamatan & Pemantauan"]
[null,"C. Sosial"]
[null,"11.","Bersikap inklusif, bertindak obyektif, serta tidak diskriminatif",{"$nulls":5},"Pengamatan & Pemantauan"]
[null,"12.","Komunikasi dengan sesama guru, tenaga kependidikan, orang tua, peserta didik dan masyarakat",{"$nulls":5},"Pengamatan"]
[null,"D. Profesional"]
[null,"13.","Penguasaan materi, struktur, kosep dan pola pikir keilmuan yang mendukung mata pelajaran yang diampu",{"$nulls":5},"Pengamatan"]
[null,"14.","Mengembangkan Keprofesionalan melalui tindakan yang reflektif",{"$nulls":5},"Pengamatan"]
[]
[null,"Keterangan:"]
[null,"Pengamatan",null,"adalah kegiatan yang menilai kinerja guru melalui diskusi sebelum pengamatan, pengamatan selama pelaksanaan proses pembelajaran, dan diskusi setelah pengamatan"]
[null,"Pemantauan",null,"adalah kegiatan untuk menilai kinerja guru melalui pemeriksaan dokumen, wawancara dengan guru yang dinilai, dan/atau wawancara dengan warga sekolah"]
[]
[null,{"$f":"\"Cirebon, \"&Guru!D46","v":"Cirebon, 31 Desember 2021"}]
[]
[null,"Guru Yang Dinilai,",{"$nulls":3},"Penilai,",null,null,{"$f":"IF((LEFT(Madrasah!$D$6,2))=\"RA\",\"Kepala RA,\",\"Kepala Madrasah,\")","v":"Kepala Madrasah,"}]
[]
[]
[]
[null,{"$f":"Guru!$D$6","v":0},{"$nulls":3},{"$f":"Menu!$D$15","v":0},null,null,{"$f":"Madrasah!$D$16","v":"H. SOIF, S.Ag., M.Pd."}]
[null,{"$f":"\"NIP. \"&(IF((Guru!$D$8)=\"-\",\"-                                      \",(Guru!$D$8)))","v":"NIP. "},{"$nulls":3},{"$f":"\"NIP. \"&(IF((Menu!$D$17)=\"-\",\"-                                      \",(Menu!$D$17)))","v":"NIP. "},null,null,{"$f":"\"NIP. \"&(IF((Madrasah!$D$18)=\"-\",\"-                                      \",(Madrasah!$D$18)))","v":"NIP. 19680302 199203 1 002"}]
[]
[{"$nulls":9},"Lampiran 1B"]
[]
[null,"LAPORAN DAN EVALUASI"]
[null,"PENILAIAN KINERJA GURU KELAS / MATA PELAJARAN"]
[]
[]
[null,"Nama Guru",{"$nulls":4},{"$f":"\":   \"&Guru!$D$6","v":":   "}]
[null,"NIP / Nomor Seri Karpeg",{"$nulls":4},{"$f":"\":   \"&Guru!$D$8&\" / \"&Guru!$D$22","v":":    / "}]
[null,"Pangkat / Golongan Ruang",{"$nulls":4},{"$f":"\":   \"&Guru!$D$12","v":":   "}]
[null,"Terhitung Mulai Tanggal",{"$nulls":4},{"$f":"Guru!$D$14","v":"00:00:00"}]
[null,"NUPTK / NRG",{"$nulls":4},{"$f":"\":   \"&Guru!$D$24&\" / \"&Guru!$D$26","v":":    / "}]
[null,"Nama Madrasah",{"$nulls":4},{"$f":"\":   \"&Madrasah!$D$6","v":":   MTsN 1 Cirebon"}]
[null,"Alamat Madrasah",{"$nulls":4},{"$f":"\":   Ds. \"&Madrasah!$D$8&\" Kec. \"&Madrasah!$D$10","v":":   Ds. Babakangebang Kec. Babakan"}]
[null,"Tanggal mulai bekerja di madrasah ini",{"$nulls":4},{"$f":"Guru!$D$28","v":"00:00:00"}]
[null,"Tanggal proses PKG",{"$nulls":4},{"$f":"Guru!$D$42","v":"00:00:00"}]
[null,"Periode Penilaian",{"$nulls":4},{"$f":"\":  \"&Guru!D44&\" s/d \"&Guru!D46","v":":  1 Januari 2021 s/d 31 Desember 2021"}]
[{"$nulls":6},"        (tgl/bln/thn)                (tgl, bln, thn)"]
[]
[]
[null,"PERSETUJUAN"]
[null,"(Persetujuan ini harus ditandatangani oleh penilai dan guru yang dinilai)"]
[]
[null,"Penilai dan guru yang dinilai menyatakan telah membaca dan memahami semua aspek yang ditulis / dilaporkan dalam format ini dan menyatakan setuju."]
[]
[]
[{"$nulls":7},{"$f":"\"Cirebon, \"&Guru!D46","v":"Cirebon, 31 Desember 2021"}]
[null,null,"Guru yang dinilai,",{"$nulls":4},"Penilai,"]
[]
[]
[]
[null,null,{"$f":"Guru!$D$6","v":0},{"$nulls":4},{"$f":"Menu!D15","v":0}]
[null,null,{"$f":"\"NIP. \"&(IF((Guru!$D$8)=\"-\",\"-                                      \",(Guru!$D$8)))","v":"NIP. "},{"$nulls":4},{"$f":"\"NIP. \"&(IF((Menu!$D$17)=\"-\",\"-                                      \",(Menu!$D$17)))","v":"NIP. "}]
{"$rows_empty":25}
[{"$nulls":9},"Lampiran 1C"]
[]
[null,"REKAP HASIL PENILAIAN KINERJA GURU KELAS/MATA PELAJARAN"]
[]
[null,"a.","N a m a",{"$nulls":3},{"$f":"Guru!$D$6","v":0}]
[null,null,"N I P",{"$nulls":3},{"$f":"Guru!$D$8","v":0}]
[null,null,"Tempat, Tanggal Lahir",{"$nulls":3},{"$f":"Guru!$D$10","v":0}]
[null,null,"Pangkat / Golongan Ruang",{"$nulls":3},{"$f":"Guru!$D$12","v":0}]
[null,null,"Jabatan",{"$nulls":3},{"$f":"Guru!$D$16","v":{"$error":"#N/A"}}]
[null,null,"NUPTK / NRG",{"$nulls":3},{"$f":"Guru!$D$24&\" / \"&Guru!$D$26","v":" / "}]
[null,null,"TMT sebagai Guru",{"$nulls":3},{"$f":"Guru!$D$30","v":"00:00:00"}]
[null,null,"Masa Kerja",{"$nulls":3},{"$f":"Guru!$D$32","v":0}]
[null,null,"Jenis Kelamin",{"$nulls":3},{"$f":"Guru!$D$34","v":0}]
[null,null,"Pendidikan Terakhir",{"$nulls":3},{"$f":"Guru!$D$36","v":0}]
[null,null,"Spesialisasi",{"$nulls":3},{"$f":"Guru!$D$38","v":0}]
[null,null,"Program Keahlian yang diampu",{"$nulls":3},{"$f":"Guru!$D$40","v":0}]
[null,"b.","Tempat Tugas",{"$nulls":3},{"$f":"Madrasah!$D$6","v":"MTsN 1 Cirebon"}]
[null,null,"Unit Kerja",{"$nulls":3},{"$f":"IF((LEFT(Madrasah!$D$14,17))=\"Kementerian Agama\",\"Kementerian Agama Kabupaten Cirebon\",(IF((LEFT(Madrasah!$D$14,7))=\"Kemenag\",\"Kementerian Agama Kabupaten Cirebon\",Madrasah!$D$14)))","v":"MTsN 1 Cirebon"}]
[null,null,"Telp. / Fax. Madrasah",{"$nulls":3},{"$f":"Madrasah!$D$12","v":"0231-8840233"}]
[null,null,"Desa / Kelurahan",{"$nulls":3},{"$f":"Madrasah!$D$8","v":"Babakangebang"}]
[null,null,"Kecamatan",{"$nulls":3},{"$f":"Madrasah!$D$10","v":"Babakan"}]
[null,null,"Kabupaten / Kota",{"$nulls":3},"Cirebon"]
[null,null,"Provinsi",{"$nulls":3},"Jawa Barat"]
[]
[null,"Periode Penilaian :",{"$nulls":4},"Formatif",{"$f":"IF(T1=1,\"v\",\"\")","v":"v"},null,{"$f":"Guru!D42","v":"00:00:00"}]
[null,{"$f":"Guru!D44&\" s/d \"&Guru!D46","v":"1 Januari 2021 s/d 31 Desember 2021"},{"$nulls":4},"Sumatif",{"$f":"IF(T1=2,\"v\",\"\")","v":""}]
[null,"(Tgl/Bln/Thn)             (Tgl/Bln/Thn)  ",{"$nulls":4},"Kemajuan",{"$f":"IF(T1=3,\"v\",\"\")","v":""}]
[]
[null,"No.","Kompetensi",{"$nulls":7},"Nilai*)"]
[null,"A. Pedagogik"]
[null,{"v":1,"d":"1."},"Menguasai Karakteristik peserta didik",{"$nulls":7},{"$f":"'Penilaian PK Guru'!I16","v":"1"}]
[null,{"v":2,"d":"2."},"Menguasai teori belajar dan prinsip-prinsip pembelajaran yang mendidik",{"$nulls":7},{"$f":"'Penilaian PK Guru'!I52","v":"1"}]
[null,{"v":3,"d":"3."},"Pengembangan Kurikulum",{"$nulls":7},{"$f":"'Penilaian PK Guru'!I83","v":"1"}]
[null,{"v":4,"d":"4."},"Kegiatan pembelajaran yang mendidik",{"$nulls":7},{"$f":"'Penilaian PK Guru'!I129","v":"1"}]
[null,{"v":5,"d":"5."},"Pengembangan potensi peserta didik",{"$nulls":7},{"$f":"'Penilaian PK Guru'!I147","v":"1"}]
[null,{"v":6,"d":"6."},"Komunikasi dengan peserta didik",{"$nulls":7},{"$f":"'Penilaian PK Guru'!I180","v":"1"}]
[null,{"v":7,"d":"7."},"Penilaian dan evaluasi",{"$nulls":7},{"$f":"'Penilaian PK Guru'!I212","v":"1"}]
[null,"B. Kepribadian"]
[null,{"v":8,"d":"8."},"Bertindak sesuai dengan norma agama, hukum, sosial, dan kebudayaan nasional",{"$nulls":7},{"$f":"'Penilaian PK Guru'!I246","v":"1"}]
[null,{"v":9,"d":"9."},"Menunjukan pribadi yang dewasa dan teladan",{"$nulls":7},{"$f":"'Penilaian PK Guru'!I286","v":"1"}]
[null,{"v":10,"d":"10."},"Etos kerja, tanggung jawab yang tinggi, rasa bangga menjadi guru",{"$nulls":7},{"$f":"'Penilaian PK Guru'!I326","v":"1"}]
[null,"C. Sosial"]
[null,{"v":11,"d":"11."},"Bersikap inklusif, bertindak obyektif, serta tidak diskriminatif",{"$nulls":7},{"$f":"'Penilaian PK Guru'!I353","v":"1"}]
[null,{"v":12,"d":"12."},"Komunikasi dengan sesama guru, tenaga kependidikan, orang tua, peserta didik dan masyarakat",{"$nulls":7},{"$f":"'Penilaian PK Guru'!I393","v":"1"}]
[null,"D. Profesional"]
[null,{"v":13,"d":"13."},"Penguasaan materi, struktur, kosep dan pola pikir keilmuan yang mendukung mata pelajaran yang diampu",{"$nulls":7},{"$f":"'Penilaian PK Guru'!I432","v":"1"}]
[null,{"v":14,"d":"14."},"Mengembangkan Keprofesionalan melalui tindakan yang reflektif",{"$nulls":7},{"$f":"'Penilaian PK Guru'!I474","v":"1"}]
[null,"Jumlah (Hasil Penilaian Kinerja Guru)",{"$nulls":8},{"$f":"K131+K132+K133+K134+K135+K136+K137+K139+K140+K141+K143+K144+K146+K147","v":14}]
[null,"*) Nilai diisi berdasarkan laporan dan evaluasi PK guru, Nilai minimum per kompetensi = 1 dan maksimum = 4"]
[]
[null,{"$f":"\"Cirebon, \"&Guru!D46","v":"Cirebon, 31 Desember 2021"}]
[null,"Guru Yang Dinilai,",{"$nulls":3},"Penilai,",null,null,{"$f":"IF((LEFT(Madrasah!$D$6,2))=\"RA\",\"Kepala RA,\",\"Kepala Madrasah,\")","v":"Kepala Madrasah,"}]
[]
[]
[]
[null,{"$f":"Guru!$D$6","v":0},{"$nulls":3},{"$f":"Menu!$D$15","v":0},null,null,{"$f":"Madrasah!$D$16","v":"H. SOIF, S.Ag., M.Pd."}]
[null,{"$f":"\"NIP. \"&(IF((Guru!$D$8)=\"-\",\"-                                      \",(Guru!$D$8)))","v":"NIP. "},{"$nulls":3},{"$f":"\"NIP. \"&(IF((Menu!$D$17)=\"-\",\"-                                      \",(Menu!$D$17)))","v":"NIP. "},null,null,{"$f":"\"NIP. \"&(IF((Madrasah!$D$18)=\"-\",\"-                                      \",(Madrasah!$D$18)))","v":"NIP. 19680302 199203 1 002"}]

{"sheet":"AK PK Guru","index":7,"n_rows":41,"n_cols":13,"rows_kept":41,"merged":[[1,9,1,10],[2,12,5,17],[3,3,3,9],[5,2,5,5],[5,6,5,10],[6,2,6,5],[6,6,6,10],[7,2,7,5],[7,6,7,10],[8,2,8,5],[8,6,8,10],[9,2,9,5],[9,6,9,10],[10,2,10,5],[10,6,10,10],[11,2,11,5],[11,6,11,10],[12,2,12,5],[12,6,12,10],[13,2,13,5],[13,6,13,10],[14,2,14,5],[14,6,14,10],[15,2,15,5],[15,6,15,10],[16,2,16,5],[16,6,16,10],[17,2,17,5],[17,6,17,10],[18,2,18,5],[18,6,18,10],[19,2,19,5],[19,6,19,10],[20,2,20,5],[20,6,20,10],[21,2,21,5],[21,6,21,10],[22,2,22,5],[22,6,22,10],[23,2,23,5],[23,6,23,10],[24,1,24,8],[24,9,24,10],[25,1,25,8],[25,9,25,10],[26,1,27,8],[26,9,26,10],[27,9,27,10],[28,1,28,8],[28,9,31,10],[30,2,30,6],[30,7,31,7],[31,2,31,6],[33,1,33,10],[35,1,35,4],[35,5,35,7],[35,8,35,10],[39,1,39,4],[39,5,39,7],[39,8,39,10],[40,1,40,4],[40,5,40,7],[40,8,40,10]]}
[]
[{"$nulls":9},"Lampiran 1D"]
[{"$nulls":12},"FORM INI KHUSUS UNTUK GURU PNS DAN/ATAU GURU NON PNS INPASSING"]
[{"$nulls":3},"FORMAT PENGHITUNGAN ANGKA KREDIT                                              PENILAIAN KINERJA GURU KELAS / MATA PELAJARAN"]
[]
[null,"a","N a m a",{"$nulls":3},{"$f":"Guru!$D$6","v":0}]
[null,null,"N I P",{"$nulls":3},{"$f":"Guru!$D$8","v":0}]
[null,null,"Tempat, Tanggal Lahir",{"$nulls":3},{"$f":"Guru!$D$10","v":0}]
[null,null,"Pangkat / Golongan Ruang",{"$nulls":3},{"$f":"Guru!$D$12","v":0}]
[null,null,"Jabatan",{"$nulls":3},{"$f":"Guru!$D$16","v":{"$error":"#N/A"}}]
[null,null,"NUPTK / NRG",{"$nulls":3},{"$f":"Guru!$D$24&\" / \"&Guru!$D$26","v":" / "}]
[null,null,"TMT sebagai Guru",{"$nulls":3},{"$f":"Guru!$D$30","v":"00:00:00"}]
[null,null,"Masa Kerja",{"$nulls":3},{"$f":"Guru!$D$32","v":0}]
[null,null,"Jenis Kelamin",{"$nulls":3},{"$f":"Guru!$D$34","v":0}]
[null,null,"Pendidikan Terakhir",{"$nulls":3},{"$f":"Guru!$D$36","v":0}]
[null,null,"Spesialisasi",{"$nulls":3},{"$f":"Guru!$D$38","v":0}]
[null,null,"Program Keahlian yang diampu",{"$nulls":3},{"$f":"Guru!$D$40","v":0}]
[null,"b","Tempat Tugas",{"$nulls":3},{"$f":"Madrasah!$D$6","v":"MTsN 1 Cirebon"}]
[null,null,"Unit Kerja",{"$nulls":3},{"$f":"IF((LEFT(Madrasah!$D$14,17))=\"Kementerian Agama\",\"Kementerian Agama Kabupaten Cirebon\",(IF((LEFT(Madrasah!$D$14,7))=\"Kemenag\",\"Kementerian Agama Kabupaten Cirebon\",Madrasah!$D$14)))","v":"MTsN 1 Cirebon"}]
[null,null,"Telp. / Fax. Madrasah",{"$nulls":3},{"$f":"Madrasah!$D$12","v":"0231-8840233"}]
[null,null,"Desa / Kelurahan",{"$nulls":3},{"$f":"Madrasah!$D$8","v":"Babakangebang"}]
[null,null,"Kecamatan",{"$nulls":3},{"$f":"Madrasah!$D$10","v":"Babakan"}]
[null,null,"Kabupaten / Kota",{"$nulls":3},"Cirebon"]
[null,null,"Provinsi",{"$nulls":3},"Jawa Barat"]
[null,"Nilai PK Guru Kelas / Mata Pelajaran",{"$nulls":7},{"$f":"'Lampiran & Rekap PK Guru'!$K$148","v":14}]
[null,"Konversi nilai PK Guru ke dalam skala 0 – 100 sesuai Permeneg PAN & RB No. 16 Tahun 2009 dengan rumus :\nNilai PKG (100) =          Nilai PKG         x 100\n                              Nilai PKG tertinggi",{"$nulls":7},{"$f":"($J$25/56)*100","v":{"v":25,"d":"25.00"}}]
[null,"Berdasarkan hasil konversi ke dalam skala nilai sesuai dengan peraturan tersebut, selanjutnya ditetapkan sebutan dan persentase angka kreditnya",{"$nulls":7},{"$f":"IF($J$26<=50,25%,IF($J$26<=60,50%,IF($J$26<=75,75%,IF($J$26<=90,100%,125%))))","v":{"v":0.25,"d":"25%"}}]
[{"$nulls":9},{"$f":"IF($J$27<=25%,\"( KURANG )\",IF($J$27<=50%,\"( SEDANG )\",IF($J$27<=75%,\"( CUKUP )\",IF($J$27<=100%,\"( BAIK )\",IF($J$27<=125%,\"( AMAT BAIK )\",\"\")))))","v":"( KURANG )"}]
[null,"Perolehan angka kredit (untuk pembelajaran) yang dihitung berdasarkan rumus berikut ini :",{"$nulls":7},{"$f":"((((VLOOKUP(Guru!$D$12,Setting!$D$2:$I$14,2,FALSE))-((VLOOKUP(Guru!$D$12,Setting!$D$2:$I$14,4,FALSE))+(VLOOKUP(Guru!$D$12,Setting!$D$2:$I$14,5,FALSE)))-(VLOOKUP(Guru!$D$12,Setting!$D$2:$I$14,6,FALSE)))*1*($J$27))/4)","v":{"$error":"#N/A"}}]
[null,"Angka Kredit satu tahun :"]
[null,null,"  (AKK – AKPKB – AKP) x (JM/JWM) x NPK  "]
[null,null,4]
[]
[null,{"$f":"\"Cirebon, \"&Guru!D46","v":"Cirebon, 31 Desember 2021"}]
[]
[null,"Guru Yang Dinilai,",{"$nulls":3},"Penilai,",null,null,{"$f":"IF((LEFT(Madrasah!$D$6,2))=\"RA\",\"Kepala RA,\",\"Kepala Madrasah,\")","v":"Kepala Madrasah,"}]
[]
[]
[]
[null,{"$f":"Guru!$D$6","v":0},{"$nulls":3},{"$f":"Menu!$D$15","v":0},null,null,{"$f":"Madrasah!$D$16","v":"H. SOIF, S.Ag., M.Pd."}]
[null,{"$f":"\"NIP. \"&(IF((Guru!$D$8)=\"-\",\"-                                      \",(Guru!$D$8)))","v":"NIP. "},{"$nulls":3},{"$f":"\"NIP. \"&(IF((Menu!$D$17)=\"-\",\"-                                      \",(Menu!$D$17)))","v":"NIP. "},null,null,{"$f":"\"NIP. \"&(IF((Madrasah!$D$18)=\"-\",\"-                                      \",(Madrasah!$D$18)))","v":"NIP. 19680302 199203 1 002"}]

{"sheet":"Lembar Pengamatan","index":8,"n_rows":782,"n_cols":15,"rows_kept":782,"merged":[[1,1,1,11],[2,14,4,20],[8,2,8,4],[8,5,8,11],[9,2,9,4],[9,5,10,11],[10,2,10,4],[11,2,11,11],[12,2,16,11],[17,2,17,11],[18,2,19,11],[22,2,22,4],[22,5,22,11],[23,2,23,4],[23,5,24,11],[24,2,24,4],[25,2,25,11],[26,2,30,11],[31,2,31,11],[32,2,33,11],[36,2,36,4],[36,5,36,11],[37,2,37,4],[37,5,38,11],[38,2,38,4],[39,2,39,11],[40,2,44,11],[45,2,45,11],[46,2,47,11],[50,2,50,4],[50,5,50,11],[51,2,51,4],[51,5,52,11],[52,2,52,4],[53,2,53,11],[54,2,57,11],[63,2,63,4],[63,5,63,11],[64,2,64,4],[64,5,65,11],[65,2,65,4],[66,2,66,11],[67,2,73,11],[74,2,74,11],[75,2,78,11],[81,2,81,4],[81,5,81,11],[82,2,82,4],[82,5,83,11],[83,2,83,4],[84,2,84,11],[85,2,91,11],[92,2,92,11],[93,2,96,11],[99,2,99,4],[99,5,99,11],[100,2,100,4],[100,5,101,11],[101,2,101,4],[102,2,102,11],[103,2,109,11],[110,2,110,11],[111,2,114,11],[120,2,120,4],[120,5,120,11],[121,2,121,4],[121,5,122,11],[122,2,122,4],[123,2,123,11],[124,2,130,11],[131,2,131,11],[132,2,135,11],[138,2,138,4],[138,5,138,11],[139,2,139,4],[139,5,140,11],[140,2,140,4],[141,2,141,11],[142,2,148,11],[149,2,149,11],[150,2,153,11],[156,2,156,4],[156,5,156,11],[157,2,157,4],[157,5,158,11],[158,2,158,4],[159,2,159,11],[160,2,166,11],[167,2,167,11],[168,2,171,11],[177,2,177,4],[177,5,177,11],[178,2,178,4],[178,5,179,11],[179,2,179,4],[180,2,180,11],[181,2,187,11],[188,2,188,11],[189,2,192,11],[195,2,195,4],[195,5,195,11],[196,2,196,4],[196,5,197,11],[197,2,197,4],[198,2,198,11],[199,2,205,11],[206,2,206,11],[207,2,210,11],[213,2,213,4],[213,5,213,11],[214,2,214,4],[214,5,215,11],[215,2,215,4],[216,2,216,11],[217,2,223,11],[224,2,224,11],[225,2,228,11],[234,2,234,4],[234,5,234,11],[235,2,235,4],[235,5,236,11],[236,2,236,4],[237,2,237,11],[238,2,242,11],[243,2,243,11],[244,2,245,11],[248,2,248,4],[248,5,248,11],[249,2,249,4],[249,5,250,11],[250,2,250,4],[251,2,251,11],[252,2,256,11],[257,2,257,11],[258,2,259,11],[262,2,262,4],[262,5,262,11],[263,2,263,4],[263,5,264,11],[264,2,264,4],[265,2,265,11],[266,2,270,11],[271,2,271,11],[272,2,273,11],[276,2,276,4],[276,5,276,11],[277,2,277,4],[277,5,278,11],[278,2,278,4],[279,2,279,11],[280,2,283,11],[289,2,289,4],[289,5,289,11],[290,2,290,4],[290,5,291,11],[291,2,291,4],[292,2,292,11],[293,2,299,11],[300,2,300,11],[301,2,304,11],[307,2,307,4],[307,5,307,11],[308,2,308,4],[308,5,309,11],[309,2,309,4],[310,2,310,11],[311,2,317,11],[318,2,318,11],[319,2,322,11],[325,2,325,4],[325,5,325,11],[326,2,326,4],[326,5,327,11],[327,2,327,4],[328,2,328,11],[329,2,335,11],[336,2,336,11],[337,2,340,11],[346,2,346,4],[346,5,346,11],[347,2,347,4],[347,5,348,11],[348,2,348,4],[349,2,349,11],[350,2,356,11],[357,2,357,11],[358,2,361,11],[364,2,364,4],[364,5,364,11],[365,2,365,4],[365,5,366,11],[366,2,366,4],[367,2,367,11],[368,2,374,11],[375,2,375,11],[376,2,379,11],[382,2,382,4],[382,5,382,11],[383,2,383,4],[383,5,384,11],[384,2,384,4],[385,2,385,11],[386,2,392,11],[393,2,393,11],[394,2,397,11],[404,2,404,4],[404,5,404,11],[405,2,405,4],[405,5,406,11],[406,2,406,4],[407,2,407,11],[408,2,412,11],[413,2,413,11],[414,2,415,11],[418,2,418,4],[418,5,418,11],[419,2,419,4],[419,5,420,11],[420,2,420,4],[421,2,421,11],[422,2,426,11],[427,2,427,11],[428,2,429,11],[432,2,432,4],[432,5,432,11],[433,2,433,4],[433,5,434,11],[434,2,434,4],[435,2,435,11],[436,2,440,11],[441,2,441,11],[442,2,443,11],[446,2,446,4],[446,5,446,11],[447,2,447,4],[447,5,448,11],[448,2,448,4],[449,2,449,11],[450,2,453,11],[459,2,459,4],[459,5,459,11],[460,2,460,4],[460,5,461,11],[461,2,461,4],[462,2,462,11],[463,2,467,11],[468,2,468,11],[469,2,470,11],[473,2,473,4],[473,5,473,11],[474,2,474,4],[474,5,475,11],[475,2,475,4],[476,2,476,11],[477,2,481,11],[482,2,482,11],[483,2,484,11],[487,2,487,4],[487,5,487,11],[488,2,488,4],[488,5,489,11],[489,2,489,4],[490,2,490,11],[491,2,495,11],[496,2,496,11],[497,2,498,11],[501,2,501,4],[501,5,501,11],[502,2,502,4],[502,5,503,11],[503,2,503,4],[504,2,504,11],[505,2,508,11],[514,2,514,4],[514,5,514,11],[515,2,515,4],[515,5,516,11],[516,2,516,4],[517,2,517,11],[518,2,522,11],[523,2,523,11],[524,2,525,11],[528,2,528,4],[528,5,528,11],[529,2,529,4],[529,5,530,11],[530,2,530,4],[531,2,531,11],[532,2,536,11],[537,2,537,11],[538,2,539,11],[542,2,542,4],[542,5,542,11],[543,2,543,4],[543,5,544,11],[544,2,544,4],[545,2,545,11],[546,2,550,11],[551,2,551,11],[552,2,553,11],[556,2,556,4],[556,5,556,11],[557,2,557,4],[557,5,558,11],[558,2,558,4],[559,2,559,11],[560,2,563,11],[569,2,569,4],[569,5,569,11],[570,2,570,4],[570,5,571,11],[571,2,571,4],[572,2,572,11],[573,2,577,11],[578,2,578,11],[579,2,580,11],[583,2,583,4],[583,5,583,11],[584,2,584,4],[584,5,585,11],[585,2,585,4],[586,2,586,11],[587,2,591,11],[592,2,592,11],[593,2,594,11],[597,2,597,4],[597,5,597,11],[598,2,598,4],[598,5,599,11],[599,2,599,4],[600,2,600,11],[601,2,605,11],[606,2,606,11],[607,2,608,11],[611,2,611,4],[611,5,611,11],[612,2,612,4],[612,5,613,11],[613,2,613,4],[614,2,614,11],[615,2,618,11],[625,2,625,4],[625,5,625,11],[626,2,626,4],[626,5,627,11],[627,2,627,4],[628,2,628,11],[629,2,634,11],[635,2,635,11],[636,2,639,11],[642,2,642,4],[642,5,642,11],[643,2,643,4],[643,5,644,11],[644,2,644,4],[645,2,645,11],[646,2,651,11],[652,2,652,11],[653,2,656,11],[659,2,659,4],[659,5,659,11],[660,2,660,4],[660,5,661,11],[661,2,661,4],[662,2,662,11],[663,2,668,11],[669,2,669,11],[670,2,673,11],[680,2,680,4],[680,5,680,11],[681,2,681,4],[681,5,682,11],[682,2,682,4],[683,2,683,11],[684,2,689,11],[690,2,690,11],[691,2,694,11],[697,2,697,4],[697,5,697,11],[698,2,698,4],[698,5,699,11],[699,2,699,4],[700,2,700,11],[701,2,706,11],[707,2,707,11],[708,2,711,11],[714,2,714,4],[714,5,714,11],[715,2,715,4],[715,5,716,11],[716,2,716,4],[717,2,717,11],[718,2,723,11],[724,2,724,11],[725,2,728,11],[734,2,734,4],[734,5,734,11],[735,2,735,4],[735,5,736,11],[736,2,736,4],[737,2,737,11],[738,2,744,11],[745,2,745,11],[746,2,749,11],[752,2,752,4],[752,5,752,11],[753,2,753,4],[753,5,754,11],[754,2,754,4],[755,2,755,11],[756,2,762,11],[763,2,763,11],[764,2,767,11],[770,2,770,4],[770,5,770,11],[771,2,771,4],[771,5,772,11],[772,2,772,4],[773,2,773,11],[774,2,780,11],[781,2,781,11],[782,2,785,11]]}
[]
[null,"LEMBAR PENGAMATAN DAN PEMANTAUAN PKG"]
[{"$nulls":14},"LEMBAR PENGAMATAN DAN PEMANTAUAN PKG"]
[null,"Kompetensi",null,":","1. Menguasai karakteristik peserta didik"]
[null,"Nama Guru",null,":",{"$f":"Guru!$D$6","v":0}]
[null,"Nama Penilai",null,":",{"$f":"Menu!$D$15","v":0}]
[]
[null,"A.","Sebelum Pengamatan"]
[null,null,"Tanggal",null,null,{"$f":"Guru!$D$42","v":"00:00:00"}]
[null,null,"Dokumen dan bahan lain",null,null,"Daftar hadir siswa, daftar nilai siswa, lembar hasil ulangan siswa, wawancara guru"]
[null,null,"yang diperiksa"]
[null,null,"Tanggapan penilai terhadap dokumen dan/atau keterangan guru :"]
[null,null,"Guru mengetahui kemampuan belajar siswa, Memiliki catatan kejadian yang terjadi di kelasnya, Guru memiliki catatan tentang tugas/PR Siswa"]
[]
[]
[]
[]
[null,null,"Tindak lanjut yang diperlukan :"]
[null,null,"Periksa kelengkapan administrasi pembelajaran"]
[]
[]
[null,"B.","Selama Pengamatan"]
[null,null,"Tanggal",null,null,{"$f":"Guru!$D$42","v":"00:00:00"}]
[null,null,"Dokumen dan bahan lain",null,null,"RPP, wawancara guru, hasil pengamatan di kelas"]
[null,null,"yang diperiksa"]
[null,null,"Kegiatan/aktivitas guru dan peserta didik selama pengamatan :"]
[null,null,"- Guru mengatur tempat duduk siswa sebelum materi dimulai\n- Guru memberikan pertanyaan terbuka untuk mengecek pemahaman siswa tentang\nmateri yang diberikan\n- Guru hafal betul nama-nama siswa di kelas\n"]
[]
[]
[]
[]
[null,null,"Tindak lanjut yang diperlukan :"]
[null,null,"Menanyakan apakah seluruh siswa dapat mencapai tujuan kompetensi setelah pembelajaran"]
[]
[]
[null,"C.","Setelah Pengamatan"]
[null,null,"Tanggal",null,null,{"$f":"Guru!$D$42","v":"00:00:00"}]
[null,null,"Dokumen dan bahan lain",null,null,"RPP, lembar pengamatan, wawancara guru"]
[null,null,"yang diperiksa"]
[null,null,"Setelah pengamatan : Tanggapan penilai terhadap dokumen dan/atau keterangan guru :"]
[null,null,"‐ Guru meminta siswa untuk pindah tempat duduk karena siswa tersebut mempunyai\nmasalah penglihatan\n‐ Guru pernah mengambil siswa yang kurang bias berkonsentrasi dalam belajar dan\nmeminta guru Bimbingan dan Konseling untuk member layanan"]
[]
[]
[]
[]
[null,null,"Tindak lanjut yang diperlukan :"]
[null,null,"Guru memantau atau memonitor perkembangan siswa"]
[]
[]
[null,"D.","Pemantauan"]
[null,null,"Tanggal",null,null,{"$f":"Guru!$D$42+7","v":"1900-01-07"}]
[null,null,"Dokumen dan bahan lain",null,null,"Catatan perkembangan peserta didik\nDaftar nilai evaluasi hasil belajar\n"]
[null,null,"yang diperiksa"]
[null,null,"Catatan dan tanggapan penilai terhadap dokumen dan/atau keterangan guru (catat kegiatan yang dilakukan) :"]
[null,null,"Perkembangan peserta didik dicatat di dalam agenda kemajuan belajar\nPerkembangan nilai hasil belajar dicatat dalam daftar nilai"]
[]
[]
[]
[null,"Kompetensi",null,":","2. Menguasai teori belajar dan prinsip-prinsip pembelajaran yang mendidik"]
[null,"Nama Guru",null,":",{"$f":"Guru!$D$6","v":0}]
[null,"Nama Penilai",null,":",{"$f":"Menu!$D$15","v":0}]
[]
[null,"A.","Sebelum Pengamatan"]
[null,null,"Tanggal",null,null,{"$f":"Guru!$D$42","v":"00:00:00"}]
[null,null,"Dokumen dan bahan lain",null,null,"RPP dan silabus"]
[null,null,"yang diperiksa"]
[null,null,"Tanggapan penilai terhadap dokumen dan/atau keterangan guru :"]
[null,null,"‐ Guru dapat menjelaskan alasan penyusunan langkah-langkah kegiatan dalam RPP\n‐ Guru mengetahui tujuan pembelajaran serta metode yang akan digunakan dalam\nKBM"]
[]
[]
[]
[]
[]
[]
[null,null,"Tindak lanjut yang diperlukan :"]
[null,null,"Amati susunan RPP apakah sudah sesuai dengan langkah-langkahnya"]
[]
[]
[]
[]
[null,"B.","Selama Pengamatan"]
[null,null,"Tanggal",null,null,{"$f":"Guru!$D$42","v":"00:00:00"}]
[null,null,"Dokumen dan bahan lain",null,null,"RPP"]
[null,null,"yang diperiksa"]
[null,null,"Kegiatan/aktivitas guru dan peserta didik selama pengamatan :"]
[null,null,"-Guru menjelaskan tujuan pembelajaran\n- Guru memberikan pertanyaan kepada siswa baik pertanyaan terbuka maupun\npertanyaan untuk dijawab secara individu\n- Guru memberikan pujian kepada siswa yang berani bertanya\n- Guru meminta siswa untuk bekerja kelompok\n‐ Guru mengecek pemahaman siswa tentang tugas yang diberikan"]
[]
[]
[]
[]
[]
[]
[null,null,"Tindak lanjut yang diperlukan :"]
[null,null,"- Guru harus dapat memastikan pemahaman peserta didik terhadap materi pelajaran\n- Guru memanfaatkan berbagai teknik untuk memotivasi kemauan belajar peserta didik dan membantu dalam pencapaian tujuan pembelajaran\n- Guru melakukan refleksi sesudah proses pembelajaran"]
[]
[]
[]
[]
[null,"C.","Setelah Pengamatan"]
[null,null,"Tanggal",null,null,{"$f":"Guru!$D$42","v":"00:00:00"}]
[null,null,"Dokumen dan bahan lain",null,null,"RPP"]
[null,null,"yang diperiksa"]
[null,null,"Setelah pengamatan : Tanggapan penilai terhadap dokumen dan/atau keterangan guru :"]
[null,null,"‐ Guru dapat menjelaskan alas an mengapa siswa diminta bekerja secara kelompok\ndalam suatu materi percobaan"]
[]
[]
[]
[]
[]
[]
[null,null,"Tindak lanjut yang diperlukan :"]
[null,null,"- Disarankan menggunakan metode dan model pembelajaran yang sesuai dengan yang ditulis pada RPP"]
[]
[]
[]
[null,"Kompetensi",null,":","3. Pengembangan kurikulum"]
[null,"Nama Guru",null,":",{"$f":"Guru!$D$6","v":0}]
[null,"Nama Penilai",null,":",{"$f":"Menu!$D$15","v":0}]
[]
[null,"A.","Sebelum Pengamatan"]
[null,null,"Tanggal",null,null,{"$f":"Guru!$D$42","v":"00:00:00"}]
[null,null,"Dokumen dan bahan lain",null,null,"RPP dan silabus"]
[null,null,"yang diperiksa"]
[null,null,"Tanggapan penilai terhadap dokumen dan/atau keterangan guru :"]
[null,null,"‐ RPP yang ditulis guru ternyata sesuai dengan silabus\n‐ Silabus yang disusun guru sesuai dengan standar isi/kurikulum"]
[]
[]
[]
[]
[]
[]
[null,null,"Tindak lanjut yang diperlukan :"]
[null,null,"Amati apakah pembelajaran yang dilakukan sesuai dengan RPP"]
[]
[]
[]
[]
[null,"B.","Selama Pengamatan"]
[null,null,"Tanggal",null,null,{"$f":"Guru!$D$42","v":"00:00:00"}]
[null,null,"Dokumen dan bahan lain",null,null,"RPP dan Silabus"]
[null,null,"yang diperiksa"]
[null,null,"Kegiatan/aktivitas guru dan peserta didik selama pengamatan :"]
[null,null,"- Guru menghubungkan materi yang diajarkan dengan lingkungan dan kehidupan sehari-hari peserta didik\n‐ Guru menjelaskan materi dengan lancar\n‐ Guru menjelaskan langkah-langkah percobaan dengan jelas\n‐ Guru meminta siswa untuk bekerja berkelompok"]
[]
[]
[]
[]
[]
[]
[null,null,"Tindak lanjut yang diperlukan :"]
[null,null,"- Memberikan saran kepada guru agar semua kegiatan/aktivitas pembelajaran mencakup berbagai tipe pembelajaran siswa"]
[]
[]
[]
[]
[null,"C.","Setelah Pengamatan"]
[null,null,"Tanggal",null,null,{"$f":"Guru!$D$42","v":"00:00:00"}]
[null,null,"Dokumen dan bahan lain",null,null,"Daftar nilai, program remedial"]
[null,null,"yang diperiksa"]
[null,null,"Setelah pengamatan : Tanggapan penilai terhadap dokumen dan/atau keterangan guru :"]
[null,null,"- guru berupaya memanfaatkan hasil pembelajaran untuk mengembangkan topik materi pembelajaran berikutnya"]
[]
[]
[]
[]
[]
[]
[null,null,"Tindak lanjut yang diperlukan :"]
[null,null,"- Memanfaatkan hasil pembelajaran untuk mengembangkan topik materi pembelajaran berikutnya secara efektif dan berkelanjutan"]
[]
[]
[]
[null,"Kompetensi",null,":","4. Kegiatan pembelajaran yang mendidik"]
[null,"Nama Guru",null,":",{"$f":"Guru!$D$6","v":0}]
[null,"Nama Penilai",null,":",{"$f":"Menu!$D$15","v":0}]
[]
[null,"A.","Sebelum Pengamatan"]
[null,null,"Tanggal",null,null,{"$f":"Guru!$D$42","v":"00:00:00"}]
[null,null,"Dokumen dan bahan lain",null,null,"RPP dan silabus"]
[null,null,"yang diperiksa"]
[null,null,"Tanggapan penilai terhadap dokumen dan/atau keterangan guru :"]
[null,null,"- Guru menjelaskan tentang topik dan kegiatan pembelajaran yang akan dilakukan, kemungkinan ada kesulitan dalam membahas topik tersebut untuk mencapai tujuan yang ditetapkan\n- Guru menjelaskan bagaimana menetapkan strategi untuk mengatasi apabila peserta didik yang mengalami kesulitan dalam memahami materi pembelajaran\n"]
[]
[]
[]
[]
[]
[]
[null,null,"Tindak lanjut yang diperlukan :"]
[null,null,"- Periksa RPP apakah sudah memuat strategi pembelajaran yang tepat dengan materi yang akan disampaikan.\n- Periksa alat penilaian yang akan digunakan untuk mengukur ketercapaian tujuan pembelajaran"]
[]
[]
[]
[]
[null,"B.","Selama Pengamatan"]
[null,null,"Tanggal",null,null,{"$f":"Guru!$D$42","v":"00:00:00"}]
[null,null,"Dokumen dan bahan lain",null,null,"- Rencana pelaksanaan pembelajaran (RPP)\n- Media pembelajaran\n"]
[null,null,"yang diperiksa"]
[null,null,"Kegiatan/aktivitas guru dan peserta didik selama pengamatan :"]
[null,null,"- Guru telah menyesuaikan kemampuan peserta didik untuk berkonsentrasi dalam menerima pelajaran sesuai dengan tingkat perkembangannya\n- Kegiatan guru dalam pembelajaran dapat membantu sebagian peserta didik untuk mencapai tujuan pembelajaran\n- Dalam mengelola aktivitas guru melaksanakan pembelajaran tidak sesuai dengan tujuan pembelajaran yang direncanakan\n"]
[]
[]
[]
[]
[]
[]
[null,null,"Tindak lanjut yang diperlukan :"]
[null,null,"- Guru harus mengupayakan aktivitas pembelajaran agar sesuai dengan kemampuan peserta didik untuk berkonsentrasi dalam menerima pelajaran sesuai dengan tingkat perkembanganya\n"]
[]
[]
[]
[]
[null,"C.","Setelah Pengamatan"]
[null,null,"Tanggal",null,null,{"$f":"Guru!$D$42","v":"00:00:00"}]
[null,null,"Dokumen dan bahan lain",null,null,"- Buku Nilai\n- Buku Penugasan"]
[null,null,"yang diperiksa"]
[null,null,"Setelah pengamatan : Tanggapan penilai terhadap dokumen dan/atau keterangan guru :"]
[null,null,"- Ada peningkatan dalam hasil evaluasi pembelajaran\n- Belum ada daftar identifikasi masalah yang perlu diperbaiki"]
[]
[]
[]
[]
[]
[]
[null,null,"Tindak lanjut yang diperlukan :"]
[null,null,"- Guru diminta untuk menjelaskan seberapa jauh tingkat keberhasilan dalam pembelajaran\n- Guru diminta untuk membuat daftar identifikasi bagian mana yang perlu diperbaiki\n"]
[]
[]
[]
[null,"Kompetensi",null,":","5. Pengembangan potensi peserta didik"]
[null,"Nama Guru",null,":",{"$f":"Guru!$D$6","v":0}]
[null,"Nama Penilai",null,":",{"$f":"Menu!$D$15","v":0}]
[]
[null,"A.","Sebelum Pengamatan"]
[null,null,"Tanggal",null,null,{"$f":"Guru!$D$42","v":"00:00:00"}]
[null,null,"Dokumen dan bahan lain",null,null,"RPP dan silabus"]
[null,null,"yang diperiksa"]
[null,null,"Tanggapan penilai terhadap dokumen dan/atau keterangan guru :"]
[null,null,"- Melalui Buku Catatan Khusus, guru Dapat menunjukan kekuatan dan kelemahan pesertaidik dengan mengadakan pengamatan sikap peserta didik terhadap materi pembelajaran"]
[]
[]
[]
[]
[null,null,"Tindak lanjut yang diperlukan :"]
[null,null,"- Guru disarankan menganalisis hasil belajar dengan memperhatikan tingkat kemajuan masing-masing\n"]
[]
[]
[null,"B.","Selama Pengamatan"]
[null,null,"Tanggal",null,null,{"$f":"Guru!$D$42","v":"00:00:00"}]
[null,null,"Dokumen dan bahan lain",null,null,"- Daftar hadir, RPP, Catatan tugas, Buku Catatan Khusus,  Daftar hasil belajar siswa\n"]
[null,null,"yang diperiksa"]
[null,null,"Kegiatan/aktivitas guru dan peserta didik selama pengamatan :"]
[null,null,"- Guru memperhatikan seluruh peserta didik \n- Guru memberi kesempatan kepada seluruh  peserta didik terlibat secara aktif dalam pembelajaran\n- Hanya sebagian dari peserta didik yang dapat menggunakan kesempatan yang diberikan kepada mereka untuk menyampaikan pemikiran/pendapatnya\n"]
[]
[]
[]
[]
[null,null,"Tindak lanjut yang diperlukan :"]
[null,null,"- Periksa lembar pengamatan, apakah prosesnya sudah memuat pengamatan peserta didik secara lengkap."]
[]
[]
[null,"C.","Setelah Pengamatan"]
[null,null,"Tanggal",null,null,{"$f":"Guru!$D$42","v":"00:00:00"}]
[null,null,"Dokumen dan bahan lain",null,null,"- Daftar hadir, RPP, Catatan tugas, Buku Catatan Khusus,  Daftar hasil belajar siswa\n"]
[null,null,"yang diperiksa"]
[null,null,"Setelah pengamatan : Tanggapan penilai terhadap dokumen dan/atau keterangan guru :"]
[null,null,"- Guru menjelaskan tindak lanjut yang akan dilakukan pada materi tersebut\n- Ada beberapa siswa yang mempunyai kemampuan di atas rata-rata sehingga perlu untuk diberikan perlakuan yang  berbeda dari peserta didik lainnya\n"]
[]
[]
[]
[]
[null,null,"Tindak lanjut yang diperlukan :"]
[null,null,"- Guru diminta untuk menjelaskan tindak lanjut yang akan dilakukan karena topik tersebut menarik atau sulit dipahami oleh peserta didik"]
[]
[]
[null,"D.","Pemantauan"]
[null,null,"Tanggal",null,null,{"$f":"Guru!$D$42+7","v":"1900-01-07"}]
[null,null,"Dokumen dan bahan lain",null,null,"- Buku catatan kemajuan/perkembangan peserta didik"]
[null,null,"yang diperiksa"]
[null,null,"Catatan dan tanggapan penilai terhadap dokumen dan/atau keterangan guru (catat kegiatan yang dilakukan) :"]
[null,null,"- Catatan guru mengenai kemajuan belajar peserta didik terlalu umum belum terperinci kemajuan/kemunduran pemahaman dari setiap peserta didik dan harus dipisah dari Buku Nilai."]
[]
[]
[]
[null,"Kompetensi",null,":","6. Komunikasi dengan peserta didik"]
[null,"Nama Guru",null,":",{"$f":"Guru!$D$6","v":0}]
[null,"Nama Penilai",null,":",{"$f":"Menu!$D$15","v":0}]
[]
[null,"A.","Sebelum Pengamatan"]
[null,null,"Tanggal",null,null,{"$f":"Guru!$D$42","v":"00:00:00"}]
[null,null,"Dokumen dan bahan lain",null,null,"RPP dan Lembar Pengamatan"]
[null,null,"yang diperiksa"]
[null,null,"Tanggapan penilai terhadap dokumen dan/atau keterangan guru :"]
[null,null,"- Guru diminta penjelasannya bagaimana mendorong interaksi aktif antar peserta didik"]
[]
[]
[]
[]
[]
[]
[null,null,"Tindak lanjut yang diperlukan :"]
[null,null,"- Melengkapi lembar pengamatan dengan memuat pertanyaan yang memancing peserta didik untuk berfikir dan berani mengutarakan idea tau gagasannya"]
[]
[]
[]
[]
[null,"B.","Selama Pengamatan"]
[null,null,"Tanggal",null,null,{"$f":"Guru!$D$42","v":"00:00:00"}]
[null,null,"Dokumen dan bahan lain",null,null,"- Lembar Pengamatan, RPP, Buku Penugasan\n"]
[null,null,"yang diperiksa"]
[null,null,"Kegiatan/aktivitas guru dan peserta didik selama pengamatan :"]
[null,null,"- Pembagian waktu yang digunakan guru untuk berbicara dikelas, berbicara kepada peserta didik secara individu telah tercantum dalam RPP\n- Guru mengajukan beberapa pertanyaan dengan bervariasi\n- Pengaturan waktu untuk bekerja kelompok telah dirancang agar mencukupi setiap peserta didik berpartisipasi secara aktif"]
[]
[]
[]
[]
[]
[]
[null,null,"Tindak lanjut yang diperlukan :"]
[null,null,"- Pembagian waktu untuk guru berbicara kepada peserta didik tidak lebih banyak daripada waktu yang diberikan kepada peserta didik untuk berinteraksi secara aktif antar peserta didik"]
[]
[]
[]
[]
[null,"C.","Setelah Pengamatan"]
[null,null,"Tanggal",null,null,{"$f":"Guru!$D$42","v":"00:00:00"}]
[null,null,"Dokumen dan bahan lain",null,null,"- Lembar pengamatan"]
[null,null,"yang diperiksa"]
[null,null,"Setelah pengamatan : Tanggapan penilai terhadap dokumen dan/atau keterangan guru :"]
[null,null,"- Guru berupaya untuk menciptakan komunikasi yang efektif selama pembelajaran"]
[]
[]
[]
[]
[]
[]
[null,null,"Tindak lanjut yang diperlukan :"]
[null,null,"Bertanya atau meminta penjelasan kepada guru tentang persepsi berkaitan dengan efektifitas komunikasi selama proses pembelajaran, misalnya pertanyaan dari peserta didik cukup banyak"]
[]
[]
[]
[null,"Kompetensi",null,":","7. Penilaian dan evaluasi"]
[null,"Nama Guru",null,":",{"$f":"Guru!$D$6","v":0}]
[null,"Nama Penilai",null,":",{"$f":"Menu!$D$15","v":0}]
[]
[null,"A.","Sebelum Pengamatan"]
[null,null,"Tanggal",null,null,{"$f":"Guru!$D$42","v":"00:00:00"}]
[null,null,"Dokumen dan bahan lain",null,null,"- RPP, Instrumen penilaian"]
[null,null,"yang diperiksa"]
[null,null,"Tanggapan penilai terhadap dokumen dan/atau keterangan guru :"]
[null,null,"- Guru menggunakan teknik penilaian sesuai dengan pencapaian tujuan pembelajaran\n- Guru menggunakan alat penilaian untuk mengetahui tingkat keberhasilan pembelajaran\n"]
[]
[]
[]
[]
[]
[]
[null,null,"Tindak lanjut yang diperlukan :"]
[null,null,"- Disarankan kepada guru agar teknik penilaian yang disesuaikan dengan indikator yang terdapat pada silabus\n- Guru memahami macam-macam teknik penilaian dan dapat menjelaskan cara dan fungsinya\n"]
[]
[]
[]
[]
[null,"B.","Selama Pengamatan"]
[null,null,"Tanggal",null,null,{"$f":"Guru!$D$42","v":"00:00:00"}]
[null,null,"Dokumen dan bahan lain"]
[null,null,"yang diperiksa"]
[null,null,"Kegiatan/aktivitas guru dan peserta didik selama pengamatan :"]
{"$rows_empty":7}
[null,null,"Tindak lanjut yang diperlukan :"]
[]
[]
[]
[]
[]
[null,"C.","Setelah Pengamatan"]
[null,null,"Tanggal",null,null,{"$f":"Guru!$D$42","v":"00:00:00"}]
[null,null,"Dokumen dan bahan lain",null,null,"- Buku Nilai,  Analisis Hasil penilaian\n- RPP, Silabus \n"]
[null,null,"yang diperiksa"]
[null,null,"Setelah pengamatan : Tanggapan penilai terhadap dokumen dan/atau keterangan guru :"]
[null,null,"- Guru memperoleh masukan balik tentang pengajarannya melalui evaluasi oleh peserta didik tanpa memperhatikan komentar dari teman sekerja, dan refleksi diri\n- Guru menganalisis penilaian dan menunjukan topik kompetensi yang sulit untuk kepentingan remedial\n- Guru mengkomunikasikan hasil penilaian kepada peserta didik \n"]
[]
[]
[]
[]
[]
[]
[null,null,"Tindak lanjut yang diperlukan :"]
[null,null,"- Guru membagikan hasil ulangan kepada peserta didik untuk ditandatangani oleh orang tuanya\n- Memperbaiki analisis hasil ulangan\n"]
[]
[]
[]
[null,"Kompetensi",null,":","8. Bertindak sesuai dengan norma agama, hukum, sosial, dan kebudayaan"]
[{"$nulls":4},"    nasional"]
[null,"Nama Guru",null,":",{"$f":"Guru!$D$6","v":0}]
[null,"Nama Penilai",null,":",{"$f":"Menu!$D$15","v":0}]
[]
[null,"A.","Sebelum Pengamatan"]
[null,null,"Tanggal",null,null,{"$f":"Guru!$D$42","v":"00:00:00"}]
[null,null,"Dokumen dan bahan lain",null,null,"Instrumen Guru"]
[null,null,"yang diperiksa"]
[null,null,"Tanggapan penilai terhadap dokumen dan/atau keterangan guru :"]
[null,null,"- Guru berpendapat bahwa Negara Indonesia sangat kaya akan budaya, bahasa, dan\nagama. Hal ini dapat menjadi keuntungan ataupun kesulitan bagi bangsa Indonesia.\nTergantung dari cara mengelolanya.\n‐ Guru memperlakukan sama pada siswa, tidak membedakan suku, agama, dan budaya."]
[]
[]
[]
[]
[null,null,"Tindak lanjut yang diperlukan :"]
[null,null,"Pengamatan kegiatan di luar sekolah"]
[]
[]
[null,"B.","Selama Pengamatan"]
[null,null,"Tanggal",null,null,{"$f":"Guru!$D$42","v":"00:00:00"}]
[null,null,"Dokumen dan bahan lain"]
[null,null,"yang diperiksa"]
[null,null,"Kegiatan/aktivitas guru dan peserta didik selama pengamatan :"]
[]
[]
[]
[]
[]
[null,null,"Tindak lanjut yang diperlukan :"]
[]
[]
[]
[null,"C.","Setelah Pengamatan"]
[null,null,"Tanggal",null,null,{"$f":"Guru!$D$42","v":"00:00:00"}]
[null,null,"Dokumen dan bahan lain"]
[null,null,"yang diperiksa"]
[null,null,"Setelah pengamatan : Tanggapan penilai terhadap dokumen dan/atau keterangan guru :"]
[]
[]
[]
[]
[]
[null,null,"Tindak lanjut yang diperlukan :"]
[]
[]
[]
[null,"D.","Pemantauan"]
[null,null,"Tanggal",null,null,{"$f":"Guru!$D$42+7","v":"1900-01-07"}]
[null,null,"Dokumen dan bahan lain",null,null,"- Hasil wawancara dengan warga sekolah"]
[null,null,"yang diperiksa"]
[null,null,"Catatan dan tanggapan penilai terhadap dokumen dan/atau keterangan guru (catat kegiatan yang dilakukan) :"]
[null,null,"- Wawancara dengan teman sejawat: rajin beribadah, bisa bekerjasama, menghormati teman dan suka bekerja keras\n- Hasil wawancara dengan peserta didik: sabar, berbahasa baik dan sopan, tidak pilih kasih, "]
[]
[]
[]
[null,"Kompetensi",null,":","9. Menunjukkan pribadi yang dewasa dan teladan"]
[null,"Nama Guru",null,":",{"$f":"Guru!$D$6","v":0}]
[null,"Nama Penilai",null,":",{"$f":"Menu!$D$15","v":0}]
[]
[null,"A.","Sebelum Pengamatan"]
[null,null,"Tanggal",null,null,{"$f":"Guru!$D$42","v":"00:00:00"}]
[null,null,"Dokumen dan bahan lain",null,null,"- Catatan pengamatan"]
[null,null,"yang diperiksa"]
[null,null,"Tanggapan penilai terhadap dokumen dan/atau keterangan guru :"]
[null,null,"- Pada umumnya guru bertingkah laku sopan dalam berbicara , berbuat baik terhadap semua peserta didik, orang tua dan teman sejawat\n- Guru berhasil mengelola kelas sehingga dihormati muridnya dan memotivasi mereka berpartisipasi aktif dalam proses pembelajaran\n- Guru berperilaku baik untuk mencitrakan nama baik sekolah "]
[]
[]
[]
[]
[null,null,"Tindak lanjut yang diperlukan :"]
[null,null,"- Guru disarankan agar selalu memberikan motivasi dan selalu berusaha untuk menjadi pribadi yang lebih baik"]
[]
[]
[null,"B.","Selama Pengamatan"]
[null,null,"Tanggal",null,null,{"$f":"Guru!$D$42","v":"00:00:00"}]
[null,null,"Dokumen dan bahan lain"]
[null,null,"yang diperiksa"]
[null,null,"Kegiatan/aktivitas guru dan peserta didik selama pengamatan :"]
[]
[]
[]
[]
[]
[null,null,"Tindak lanjut yang diperlukan :"]
[]
[]
[]
[null,"C.","Setelah Pengamatan"]
[null,null,"Tanggal",null,null,{"$f":"Guru!$D$42","v":"00:00:00"}]
[null,null,"Dokumen dan bahan lain"]
[null,null,"yang diperiksa"]
[null,null,"Setelah pengamatan : Tanggapan penilai terhadap dokumen dan/atau keterangan guru :"]
[]
[]
[]
[]
[]
[null,null,"Tindak lanjut yang diperlukan :"]
[]
[]
[]
[null,"D.","Pemantauan"]
[null,null,"Tanggal",null,null,{"$f":"Guru!$D$42+7","v":"1900-01-07"}]
[null,null,"Dokumen dan bahan lain",null,null,"- Absensi guru\n- Instrumen suvervisi kelas oleh kepada sekolah"]
[null,null,"yang diperiksa"]
[null,null,"Catatan dan tanggapan penilai terhadap dokumen dan/atau keterangan guru (catat kegiatan yang dilakukan) :"]
[null,null,"- Hadir dan masuk kelas tepat waktu menerima masukan dan saran pembelajaran oleh teman sejawat\n- Guru merencanakan dan melaksanakan pembelajaran sesuai standar yang diharapkan sekolah\n"]
[]
[]
[]
[null,"Kompetensi",null,":","10. Etos kerja, tanggung jawab yang tinggi, rasa bangga menjadi guru"]
[null,"Nama Guru",null,":",{"$f":"Guru!$D$6","v":0}]
[null,"Nama Penilai",null,":",{"$f":"Menu!$D$15","v":0}]
[]
[null,"A.","Sebelum Pengamatan"]
[null,null,"Tanggal",null,null,{"$f":"Guru!$D$42","v":"00:00:00"}]
[null,null,"Dokumen dan bahan lain",null,null,"Instrumen guru"]
[null,null,"yang diperiksa"]
[null,null,"Tanggapan penilai terhadap dokumen dan/atau keterangan guru :"]
[null,null,"- Guru memiliki materi tambahan sesuai tujuan pembelajaran yang bisa digunakan\noleh orang lain/guru piket."]
[]
[]
[]
[]
[null,null,"Tindak lanjut yang diperlukan :"]
[]
[]
[]
[null,"B.","Selama Pengamatan"]
[null,null,"Tanggal",null,null,{"$f":"Guru!$D$42","v":"00:00:00"}]
[null,null,"Dokumen dan bahan lain"]
[null,null,"yang diperiksa"]
[null,null,"Kegiatan/aktivitas guru dan peserta didik selama pengamatan :"]
[]
[]
[]
[]
[]
[null,null,"Tindak lanjut yang diperlukan :"]
[]
[]
[]
[null,"C.","Setelah Pengamatan"]
[null,null,"Tanggal",null,null,{"$f":"Guru!$D$42","v":"00:00:00"}]
[null,null,"Dokumen dan bahan lain"]
[null,null,"yang diperiksa"]
[null,null,"Setelah pengamatan : Tanggapan penilai terhadap dokumen dan/atau keterangan guru :"]
[]
[]
[]
[]
[]
[null,null,"Tindak lanjut yang diperlukan :"]
[]
[]
[]
[null,"D.","Pemantauan"]
[null,null,"Tanggal",null,null,{"$f":"Guru!$D$42+7","v":"1900-01-07"}]
[null,null,"Dokumen dan bahan lain",null,null,"Instrumen siswa"]
[null,null,"yang diperiksa"]
[null,null,"Catatan dan tanggapan penilai terhadap dokumen dan/atau keterangan guru (catat kegiatan yang dilakukan) :"]
[null,null,"- Guru memberikan tugas kepada siswa apabila berhalangan hadir\n‐ Guru tidak pernah terlambat masuk ke kelas\n‐ Guru selalu hadir mengajar sesuai dengan jadwal pelajaran"]
[]
[]
[]
[null,"Kompetensi",null,":","11. Bersikap inklusif, bertindak obyektif, serta tidak diskriminatif"]
[null,"Nama Guru",null,":",{"$f":"Guru!$D$6","v":0}]
[null,"Nama Penilai",null,":",{"$f":"Menu!$D$15","v":0}]
[]
[null,"A.","Sebelum Pengamatan"]
[null,null,"Tanggal",null,null,{"$f":"Guru!$D$42","v":"00:00:00"}]
[null,null,"Dokumen dan bahan lain",null,null,"Pengamatan guru"]
[null,null,"yang diperiksa"]
[null,null,"Tanggapan penilai terhadap dokumen dan/atau keterangan guru :"]
[null,null,"Guru berinteraksi dengan peserta didik secara merata.\n‐ Guru melontarkan pertanyaan kepada peserta didik untuk menarik perhatian\nsiswa.\n‐ Guru menghargai hasil Kerja peserta didik dengan memberi pujian.\n‐ Guru dapat mengatasi persaingan yang tidak sehat antar peserta didik."]
[]
[]
[]
[]
[null,null,"Tindak lanjut yang diperlukan :"]
[null,null,"- Guru sebaiknya memperhatikan peserta didik secara keseluruhan baik yang pandai maupun yang mempunyai kelemahan"]
[]
[]
[null,"B.","Selama Pengamatan"]
[null,null,"Tanggal",null,null,{"$f":"Guru!$D$42","v":"00:00:00"}]
[null,null,"Dokumen dan bahan lain"]
[null,null,"yang diperiksa"]
[null,null,"Kegiatan/aktivitas guru dan peserta didik selama pengamatan :"]
[]
[]
[]
[]
[]
[null,null,"Tindak lanjut yang diperlukan :"]
[]
[]
[]
[null,"C.","Setelah Pengamatan"]
[null,null,"Tanggal",null,null,{"$f":"Guru!$D$42","v":"00:00:00"}]
[null,null,"Dokumen dan bahan lain"]
[null,null,"yang diperiksa"]
[null,null,"Setelah pengamatan : Tanggapan penilai terhadap dokumen dan/atau keterangan guru :"]
[]
[]
[]
[]
[]
[null,null,"Tindak lanjut yang diperlukan :"]
[]
[]
[]
[null,"D.","Pemantauan"]
[null,null,"Tanggal",null,null,{"$f":"Guru!$D$42+7","v":"1900-01-07"}]
[null,null,"Dokumen dan bahan lain",null,null,"- hasil wawancara dengan warga sekolah"]
[null,null,"yang diperiksa"]
[null,null,"Catatan dan tanggapan penilai terhadap dokumen dan/atau keterangan guru (catat kegiatan yang dilakukan) :"]
[null,null,"- Hubungan dan kepedulian guru dengan teman sejawat dan orang tua peserta didik terlihat baik\n- Kontribusi dalam berbagai diskusi terkait dengan pekerjaanya baik formal ataupun informal dinilai baik\n"]
[]
[]
[]
[null,"Kompetensi",null,":","12. Komunikasi dengan sesama guru, tenaga kependidikan, orang tua, peserta"]
[{"$nulls":4},"      didik, dan masyarakat"]
[null,"Nama Guru",null,":",{"$f":"Guru!$D$6","v":0}]
[null,"Nama Penilai",null,":",{"$f":"Menu!$D$15","v":0}]
[]
[null,"A.","Sebelum Pengamatan"]
[null,null,"Tanggal",null,null,{"$f":"Guru!$D$42","v":"00:00:00"}]
[null,null,"Dokumen dan bahan lain"]
[null,null,"yang diperiksa"]
[null,null,"Tanggapan penilai terhadap dokumen dan/atau keterangan guru :"]
[]
[]
[]
[]
[]
[]
[null,null,"Tindak lanjut yang diperlukan :"]
[]
[]
[]
[]
[]
[null,"B.","Selama Pengamatan"]
[null,null,"Tanggal",null,null,{"$f":"Guru!$D$42","v":"00:00:00"}]
[null,null,"Dokumen dan bahan lain"]
[null,null,"yang diperiksa"]
[null,null,"Kegiatan/aktivitas guru dan peserta didik selama pengamatan :"]
[]
[]
[]
[]
[]
[]
[null,null,"Tindak lanjut yang diperlukan :"]
[]
[]
[]
[]
[]
[null,"C.","Pemantauan"]
[null,null,"Tanggal",null,null,{"$f":"Guru!$D$42+7","v":"1900-01-07"}]
[null,null,"Dokumen dan bahan lain",null,null,"Buku Pembinaan Siswa, Buku kemajuan hasil belajar siswa"]
[null,null,"yang diperiksa"]
[null,null,"Setelah pengamatan : Tanggapan penilai terhadap dokumen dan/atau keterangan guru :"]
[null,null,"- Guru merekomendasikan siswa yang perlu mendapatkan layanan bimbingan dan\nkonseling tapi tidak ada bukti tertulis\n‐ Guru mengundang orang tua dari siswa yang bermasalah dalam pelajaran yang\ndiampunya untuk mengkomunikasikan masalah yang dihadapi siswa.\n- Guru memperlakukan teman sesame guru dengan cara yang relative sama\n‐ Guru  mengikuti upacara peringatan hari besar yang diselenggarakan di sekolah"]
[]
[]
[]
[]
[]
[null,null,"Tindak lanjut yang diperlukan :"]
[]
[]
[]
[]
[null,"Kompetensi",null,":","13. Penguasaan materi, struktur, konsep dan pola pikir keilmuan yang mendu-"]
[{"$nulls":4},"      kung mata pelajaran yang diampu"]
[null,"Nama Guru",null,":",{"$f":"Guru!$D$6","v":0}]
[null,"Nama Penilai",null,":",{"$f":"Menu!$D$15","v":0}]
[]
[null,"A.","Sebelum Pengamatan"]
[null,null,"Tanggal",null,null,{"$f":"Guru!$D$42","v":"00:00:00"}]
[null,null,"Dokumen dan bahan lain",null,null,"- Pemetaan standar kompetensi dan kompetensi dasar\n‐ RPP"]
[null,null,"yang diperiksa"]
[null,null,"Tanggapan penilai terhadap dokumen dan/atau keterangan guru :"]
[null,null,"- Materi yang dipilih dalam RPP adalah materi yang cukup menarik\n‐ Guru memiliki dokumen pemetaan standar kompetensi dan kompetensi dasar yang\ndigunakan untuk menyusun silabus dan RPP"]
[]
[]
[]
[]
[]
[null,null,"Tindak lanjut yang diperlukan :"]
[null,null,"Amati apakah penyampaian materi sesuai dengan RPP atau tidak"]
[]
[]
[]
[]
[null,"B.","Selama Pengamatan"]
[null,null,"Tanggal",null,null,{"$f":"Guru!$D$42","v":"00:00:00"}]
[null,null,"Dokumen dan bahan lain"]
[null,null,"yang diperiksa"]
[null,null,"Kegiatan/aktivitas guru dan peserta didik selama pengamatan :"]
[]
[]
[]
[]
[]
[]
[null,null,"Tindak lanjut yang diperlukan :"]
[]
[]
[]
[]
[]
[null,"C.","Setelah Pengamatan"]
[null,null,"Tanggal",null,null,{"$f":"Guru!$D$42","v":"00:00:00"}]
[null,null,"Dokumen dan bahan lain",null,null,"Pengamatan guru di dalam kelas"]
[null,null,"yang diperiksa"]
[null,null,"Setelah pengamatan : Tanggapan penilai terhadap dokumen dan/atau keterangan guru :"]
[null,null,"Guru menguasai materi pembelajaran\n‐ Guru menjelaskan materi pembelajaran dengan lancar dan jelas\n‐ Guru mengulangi beberapa hal yang dianggap penting dalam pembelajaran (salah\nsatunya cara siswa mengerjakan lembar kerja siswa)\n‐ Guru memuji siswa yang berani bertanya\n‐ Guru memberi kesempatan kepada siswa untuk menjawab pertanyaan temannya"]
[]
[]
[]
[]
[]
[null,null,"Tindak lanjut yang diperlukan :"]
[null,null,"- Guru disarankan untuk memberikan tugas kepada peserta didik dengan mengakses internet agar dapat menggali informasi yang lebih luas dan mutakhir secara terbuka ( TMTT: tugas mandiri tidak terstruktur)"]
[]
[]
[]
[null,"Kompetensi",null,":","14. Mengembangkan keprofesionalan melalui tindakan yang reflektif"]
[null,"Nama Guru",null,":",{"$f":"Guru!$D$6","v":0}]
[null,"Nama Penilai",null,":",{"$f":"Menu!$D$15","v":0}]
[]
[null,"A.","Sebelum Pengamatan"]
[null,null,"Tanggal",null,null,{"$f":"Guru!$D$42","v":"00:00:00"}]
[null,null,"Dokumen dan bahan lain"]
[null,null,"yang diperiksa"]
[null,null,"Tanggapan penilai terhadap dokumen dan/atau keterangan guru :"]
{"$rows_empty":7}
[null,null,"Tindak lanjut yang diperlukan :"]
[]
[]
[]
[]
[]
[null,"B.","Selama Pengamatan"]
[null,null,"Tanggal",null,null,{"$f":"Guru!$D$42","v":"00:00:00"}]
[null,null,"Dokumen dan bahan lain"]
[null,null,"yang diperiksa"]
[null,null,"Kegiatan/aktivitas guru dan peserta didik selama pengamatan :"]
{"$rows_empty":7}
[null,null,"Tindak lanjut yang diperlukan :"]
[]
[]
[]
[]
[]
[null,"C.","Pemantauan"]
[null,null,"Tanggal",null,null,{"$f":"Guru!$D$42+7","v":"1900-01-07"}]
[null,null,"Dokumen dan bahan lain",null,null,"‐ Agenda pembelajaran\n‐ Sertifikat seminar, workshop, dll"]
[null,null,"yang diperiksa"]
[null,null,"Setelah pengamatan : Tanggapan penilai terhadap dokumen dan/atau keterangan guru :"]
[null,null,"Guru mempunyai rencana Pengamatan Keprofesian Berkelanjutan untuk tahun yang\nakan datang\n‐ Dalam tahun ini, guru pernah menulis publikasi ilmiah berbentuk penelitian tindakan\nkelas\n‐ Guru sering mengakses internet untuk kepentingan pembelajaran\n‐ Kadang-kadang guru menggunakan e-mail untuk berkomunikasi"]
[]
[]
[]
[]
[]
[]
[null,null,"Tindak lanjut yang diperlukan :"]

{"sheet":"Cover PPKP","index":9,"n_rows":46,"n_cols":6,"rows_kept":46,"merged":[[15,2,15,6],[16,2,16,6],[17,2,17,6],[26,2,26,6],[27,2,27,6],[42,2,42,6],[43,2,43,6],[44,2,44,6],[45,2,45,6]]}
{"$rows_empty":15}
[null,null,"PENILAIAN PRESTASI KERJA"]
[null,null,"PEGAWAI NEGERI SIPIL"]
[null,null,{"$f":"Guru!D42","v":"00:00:00"}]
{"$rows_empty":8}
[null,null,"Jangka Waktu Penilaian :"]
[null,null,{"$f":"Guru!D44&\" s/d \"&Guru!D46","v":"1 Januari 2021 s/d 31 Desember 2021"}]
[]
[]
[{"$nulls":3},"N a m a",":",{"$f":"Guru!$D$6","v":0}]
[{"$nulls":3},"N I P",":",{"$f":"Guru!$D$8","v":0}]
[{"$nulls":3},"Pangkat/Gol. Ruang",":",{"$f":"Guru!$D$12","v":0}]
[{"$nulls":3},"Jabatan",":",{"$f":"Guru!$D$16","v":{"$error":"#N/A"}}]
[{"$nulls":5},{"$f":"\"(Guru \"&Madrasah!$D$6&\")\"","v":"(Guru MTsN 1 Cirebon)"}]
[{"$nulls":3},"Unit Kerja",":",{"$f":"Madrasah!$D$14","v":"MTsN 1 Cirebon"}]
[]
[]
[]
[]
[]
[]
[null,null,"KEMENTERIAN AGAMA REPUBLIK INDONESIA"]
[null,null,"KANTOR KEMENTERIAN AGAMA KABUPATEN CIREBON"]
[null,null,"Jl. Sunan Drajat No. 05 Komplek Perkantoran Sumber - 45611"]
[null,null,"Telp. (0231) 321254 Fax. (0231) 325405, 321275, 8330579"]

{"sheet":"SKP","index":10,"n_rows":37,"n_cols":13,"rows_kept":37,"merged":[[1,1,1,12],[3,2,3,6],[3,8,3,12],[4,2,4,3],[4,4,4,6],[4,8,4,9],[4,10,4,12],[5,2,5,3],[5,4,5,6],[5,8,5,9],[5,10,5,12],[6,2,6,3],[6,4,6,6],[6,8,6,9],[6,10,6,12],[7,2,7,3],[7,4,7,6],[7,8,7,9],[7,10,7,12],[8,2,8,3],[8,4,8,6],[8,8,8,9],[8,10,8,12],[9,1,11,1],[9,2,11,5],[9,6,11,6],[9,7,9,12],[10,7,10,8],[10,9,10,10],[10,11,11,11],[10,12,11,12],[11,7,11,8],[11,9,11,10],[12,1,12,12],[13,1,13,12],[14,2,14,5],[14,9,14,10],[15,2,15,5],[15,9,15,10],[16,2,16,5],[16,9,16,10],[17,1,17,12],[18,2,18,5],[18,9,18,10],[19,2,19,5],[19,9,19,10],[20,2,20,5],[20,9,20,10],[21,2,21,5],[21,9,21,10],[22,2,22,5],[22,9,22,10],[23,2,23,5],[23,9,23,10],[24,2,24,5],[24,9,24,10],[25,1,25,12],[26,2,26,5],[26,9,26,10],[27,2,27,5],[27,9,27,10],[28,2,28,5],[28,9,28,10],[29,1,29,5],[29,7,29,12],[30,8,30,11]]}
[]
[null,"SASARAN KERJA PEGAWAI (SKP)"]
[]
[null,"NO.","I. PEJABAT PENILAI",{"$nulls":4},"NO.","PNS YANG DINILAI"]
[null,1,"N a m a",null,{"$f":"Menu!$D$15","v":0},null,null,1,"N a m a",null,{"$f":"Guru!$D$6","v":0}]
[null,2,"N I P",null,{"$f":"Menu!$D$17","v":""},null,null,2,"N I P",null,{"$f":"Guru!$D$8","v":0}]
[null,3,"Pangkat/Gol. Ruang",null,{"$f":"Menu!D19","v":""},null,null,3,"Pangkat/Gol. Ruang",null,{"$f":"Guru!$D$12","v":0}]
[null,4,"Jabatan",null,{"$f":"Menu!D23","v":""},null,null,4,"Jabatan",null,{"$f":"Guru!$D$16&\" pada \"&Madrasah!D6","v":{"$error":"#N/A"}}]
[null,5,"Unit Kerja",null,"Kementerian Agama Kabupaten Cirebon",null,null,5,"Unit Kerja",null,{"$f":"Madrasah!D14","v":"MTsN 1 Cirebon"}]
[null,"NO.","III. KEGIATAN TUGAS JABATAN",{"$nulls":3},"ANGKA KREDIT","TARGET"]
[{"$nulls":7},"KUANTITAS /",null,"KUALITAS /",null,"WAKTU","BIAYA"]
[{"$nulls":7},"OUTPUT",null,"MUTU"]
[null,"1. UNSUR UTAMA"]
[null,"   A. Pembelajaran / Bimbingan dan Tugas Tertentu"]
[null,"1.)","Merencanakan dan melaksanakan pembelajaran, mengevaluasi dan menilai hasil pembelajaran, menganalisis hasil pembelajaran, melaksanakan tindak lanjut hasil penilaian pembelajaran",{"$nulls":3},{"$f":"VLOOKUP(Guru!$D$12,Setting!$T$57:$U$63,2,FALSE)","v":{"$error":"#N/A"}},1,"Laporan PKG",100,null,{"v":12,"d":"12 Bulan"},"-"]
[null,"2.)",{"$f":"\"Menjadi \"&Guru!$D$20","v":"Menjadi "},{"$nulls":3},{"$f":"G15*5%","v":{"$error":"#N/A"}},1,"Laporan PKG",100,null,{"v":12,"d":"12 Bulan"},"-"]
[null,"3.)",{"$f":"IF(Guru!D18=\"Guru Kelas\",\"Melaksanakan pembimbingan pada kelas yang menjadi tanggung jawab\",IF(Guru!D20=\"Wali Kelas\",\"Melaksanakan pembimbingan pada kelas yang menjadi tanggung jawab\"))","v":false},{"$nulls":3},{"$f":"G15*5%","v":{"$error":"#N/A"}},1,"Laporan",100,null,{"v":12,"d":"12 Bulan"},"-"]
[null,"   B. Pengembangan Keprofesian Berkelanjutan"]
[null,"1.)",{"$f":"Setting!$T$4","v":"Melaksanakan kegiatan kolektif guru (MGMP)"},{"$nulls":3},{"$f":"(VLOOKUP($C19,Setting!$T$4:$V$36,2,FALSE))*$H19","v":{"v":0.44999999999999996,"d":"0.450"}},3,{"$f":"VLOOKUP($C19,Setting!$T$4:$V$36,3,FALSE)","v":"Laporan"},100,null,{"v":12,"d":"12 Bulan"},"-"]
[null,"2.)","Membuat karya tulis ilmiah berupa laporan hasil penelitian pendidikan di madrasah, diseminarkan di madrasah dan disimpan di perpustakaan madrasah",{"$nulls":3},{"$f":"(VLOOKUP($C20,Setting!$T$4:$V$36,2,FALSE))*$H20","v":{"v":4,"d":"4.000"}},1,{"$f":"VLOOKUP($C20,Setting!$T$4:$V$36,3,FALSE)","v":"Laporan"},100,null,{"v":12,"d":"12 Bulan"},"-"]
[null,"3.)","Membuat makalah ilmiah bidang pembelajaran, tidak diterbitkan, disimpan di perpustakaan",{"$nulls":3},{"$f":"(VLOOKUP($C21,Setting!$T$4:$V$36,2,FALSE))*$H21","v":{"v":2,"d":"2.000"}},1,{"$f":"VLOOKUP($C21,Setting!$T$4:$V$36,3,FALSE)","v":"Laporan"},100,null,{"v":12,"d":"12 Bulan"},"-"]
[null,"4.)","Membuat modul/diktat pembelajaran per semester, digunakan di madrasah",{"$nulls":3},{"$f":"(VLOOKUP($C22,Setting!$T$4:$V$36,2,FALSE))*$H22","v":{"v":0.5,"d":"0.500"}},1,{"$f":"VLOOKUP($C22,Setting!$T$4:$V$36,3,FALSE)","v":"Laporan"},100,null,{"v":12,"d":"12 Bulan"},"-"]
[null,"5.)","Membuat alat pelajaran kategori sederhana",{"$nulls":3},{"$f":"(VLOOKUP($C23,Setting!$T$4:$V$36,2,FALSE))*$H23","v":{"v":1,"d":"1.000"}},1,{"$f":"VLOOKUP($C23,Setting!$T$4:$V$36,3,FALSE)","v":"Alat Pelajaran"},100,null,{"v":12,"d":"12 Bulan"},"-"]
[null,"6.)","Membuat alat peraga pembelajaran kategori sederhana",{"$nulls":3},{"$f":"(VLOOKUP($C24,Setting!$T$4:$V$36,2,FALSE))*$H24","v":{"v":1,"d":"1.000"}},1,{"$f":"VLOOKUP($C24,Setting!$T$4:$V$36,3,FALSE)","v":"Alat Peraga"},100,null,{"v":12,"d":"12 Bulan"},"-"]
[null,"7.)","Membuat alat praktekum kategori sederhana",{"$nulls":3},{"$f":"(VLOOKUP($C25,Setting!$T$4:$V$36,2,FALSE))*$H25","v":{"v":2,"d":"2.000"}},1,{"$f":"VLOOKUP($C25,Setting!$T$4:$V$36,3,FALSE)","v":"Alat Praktik"},100,null,{"v":12,"d":"12 Bulan"},"-"]
[null,"2. UNSUR PENUNJANG"]
[null,"1.)","Menjadi pengawas ujian penilaian dan evaluasi terhadap proses dan hasil belajar",{"$nulls":3},{"$f":"(VLOOKUP($C27,Setting!$T$4:$V$43,2,FALSE))*$H27","v":{"v":0.24,"d":"0.240"}},3,{"$f":"VLOOKUP($C27,Setting!$T$4:$V$43,3,FALSE)","v":"SK"},100,null,{"v":12,"d":"12 Bulan"},"-"]
[null,"2.)","Membimbing siswa dalam kegiatan ekstrakurikuler",{"$nulls":3},{"$f":"(VLOOKUP($C28,Setting!$T$4:$V$43,2,FALSE))*$H28","v":{"v":0.17,"d":"0.170"}},1,{"$f":"VLOOKUP($C28,Setting!$T$4:$V$43,3,FALSE)","v":"SK"},100,null,{"v":12,"d":"12 Bulan"},"-"]
[null,"3.)","Menjadi anggota dalam organisasi profesi",{"$nulls":3},{"$f":"(VLOOKUP($C29,Setting!$T$4:$V$43,2,FALSE))*$H29","v":{"v":0.75,"d":"0.750"}},1,{"$f":"VLOOKUP($C29,Setting!$T$4:$V$43,3,FALSE)","v":"SK"},100,null,{"v":12,"d":"12 Bulan"},"-"]
[null,"Jumlah Angka Kredit",{"$nulls":4},{"$f":"SUM(G27:G29,G19:G25,G15:G15)","v":{"$error":"#N/A"}}]
[{"$nulls":8},{"$f":"Guru!D42","v":"00:00:00"}]
[null,null,"Pejabat Penilai,",{"$nulls":5},"                PNS Yang Dinilai,"]
[]
[]
[]
[null,null,{"$f":"$E$5","v":0},{"$nulls":5},{"$f":"\"                \"&Guru!$D$6","v":"                "}]
[null,null,{"$f":"\"NIP. \"&$E$6","v":"NIP. "},{"$nulls":5},{"$f":"\"                NIP. \"&Guru!$D$8","v":"                NIP. "}]

{"sheet":"PCSKP","index":11,"n_rows":34,"n_cols":23,"rows_kept":34,"merged":[[1,1,1,18],[4,1,5,1],[4,2,5,2],[4,3,5,3],[4,4,4,9],[4,10,5,10],[4,11,4,16],[4,17,5,17],[4,18,5,18],[5,4,5,5],[5,7,5,8],[5,11,5,12],[5,14,5,15],[6,1,6,18],[7,1,7,18],[11,1,11,18],[19,1,19,18],[23,1,23,17],[24,1,25,17],[25,20,26,20],[25,21,25,22],[26,21,26,22]]}
[]
[null,"PENILAIAN CAPAIAN SASARAN KERJA PEGAWAI"]
[]
[null,{"$f":"\"Jangka waktu penilaian \"&Guru!D44&\" s/d \"&Guru!D46","v":"Jangka waktu penilaian 1 Januari 2021 s/d 31 Desember 2021"}]
[null,"No.","I. Kegiatan Tugas Jabatan","AK","Target",{"$nulls":5},"AK","Realisasi",{"$nulls":5},"Penghitungan","Nilai Capaian SKP"]
[{"$nulls":4},"Kuantitas/ Output",null,"Kual/ Mutu","Waktu",null,"Biaya",null,"Kuantitas/ Output",null,"Kual/ Mutu","Waktu",null,"Biaya"]
[null,"1. UNSUR UTAMA"]
[null,"   A. Pembelajaran / Bimbingan dan Tugas Tertentu"]
[null,{"$f":"SKP!B15","v":"1.)"},{"$f":"SKP!C15","v":"Merencanakan dan melaksanakan pembelajaran, mengevaluasi dan menilai hasil pembelajaran, menganalisis hasil pembelajaran, melaksanakan tindak lanjut hasil penilaian pembelajaran"},{"$f":"SKP!G15","v":{"$error":"#N/A"}},{"$f":"SKP!H15","v":1},{"$f":"SKP!I15","v":"Laporan PKG"},{"$f":"SKP!J15","v":100},{"$f":"SKP!L15","v":12},"bln",{"$f":"SKP!M15","v":"-"},{"$f":"'AK PK Guru'!J29","v":{"$error":"#N/A"}},1,{"$f":"F9","v":"Laporan PKG"},{"$f":"'AK PK Guru'!J26","v":25},12,"bln","-",{"$f":"SUM(U9:W9)","v":201},{"$f":"R9/3","v":{"v":67,"d":"67.000"}},null,{"$f":"L9/E9*100","v":100},{"$f":"N9/G9*100","v":25},{"$f":"((1.76*H9-O9)/H9)*100","v":76.00000000000001}]
[null,{"$f":"SKP!B16","v":"2.)"},{"$f":"SKP!C16","v":"Menjadi "},{"$f":"SKP!G16","v":{"$error":"#N/A"}},{"$f":"SKP!H16","v":1},{"$f":"SKP!I16","v":"Laporan PKG"},{"$f":"SKP!J16","v":100},{"$f":"SKP!L16","v":12},"bln",{"$f":"SKP!M16","v":"-"},{"$f":"K9*5%","v":{"$error":"#N/A"}},1,{"$f":"F10","v":"Laporan PKG"},{"$f":"((K9*5%)*100)/SKP!G16","v":{"$error":"#N/A"}},12,"bln","-",{"$f":"SUM(U10:W10)","v":{"$error":"#N/A"}},{"$f":"R10/3","v":{"$error":"#N/A"}},null,{"$f":"L10/E10*100","v":100},{"$f":"N10/G10*100","v":{"$error":"#N/A"}},{"$f":"((1.76*H10-O10)/H10)*100","v":76.00000000000001}]
[null,{"$f":"SKP!B17","v":"3.)"},{"$f":"SKP!C17","v":false},{"$f":"SKP!G17","v":{"$error":"#N/A"}},{"$f":"SKP!H17","v":1},{"$f":"SKP!I17","v":"Laporan"},{"$f":"SKP!J17","v":100},{"$f":"SKP!L17","v":12},"bln",{"$f":"SKP!M17","v":"-"},{"$f":"K9*5%","v":{"$error":"#N/A"}},1,{"$f":"F11","v":"Laporan"},75,12,"bln","-",{"$f":"SUM(U11:W11)","v":251},{"$f":"R11/3","v":{"v":83.66666666666667,"d":"83.667"}},null,{"$f":"L11/E11*100","v":100},{"$f":"N11/G11*100","v":75},{"$f":"((1.76*H11-O11)/H11)*100","v":76.00000000000001}]
[null,"   B. Pengembangan Keprofesian Berkelanjutan"]
[null,{"$f":"SKP!B19","v":"1.)"},{"$f":"SKP!C19","v":"Melaksanakan kegiatan kolektif guru (MGMP)"},{"$f":"SKP!G19","v":{"v":0.44999999999999996,"d":"0.450"}},{"$f":"SKP!H19","v":3},{"$f":"SKP!I19","v":"Laporan"},{"$f":"SKP!J19","v":100},{"$f":"SKP!L19","v":12},"bln",{"$f":"SKP!M19","v":"-"},{"$f":"(VLOOKUP(C13,Setting!$T$4:$U$36,2,FALSE))*$L13","v":{"v":0,"d":"0.000"}},null,{"$f":"F13","v":"Laporan"},75,12,"bln","-",{"$f":"SUM(U13:W13)","v":151},{"$f":"R13/3","v":{"v":50.333333333333336,"d":"50.333"}},null,{"$f":"L13/E13*100","v":0},{"$f":"N13/G13*100","v":75},{"$f":"((1.76*H13-O13)/H13)*100","v":76.00000000000001}]
[null,{"$f":"SKP!B20","v":"2.)"},{"$f":"SKP!C20","v":"Membuat karya tulis ilmiah berupa laporan hasil penelitian pendidikan di madrasah, diseminarkan di madrasah dan disimpan di perpustakaan madrasah"},{"$f":"SKP!G20","v":{"v":4,"d":"4.000"}},{"$f":"SKP!H20","v":1},{"$f":"SKP!I20","v":"Laporan"},{"$f":"SKP!J20","v":100},{"$f":"SKP!L20","v":12},"bln",{"$f":"SKP!M20","v":"-"},{"$f":"(VLOOKUP(C14,Setting!$T$4:$U$36,2,FALSE))*$L14","v":{"v":0,"d":"0.000"}},null,"Laporan",75,12,"bln","-",151,{"v":50.333333333333336,"d":"50.333"},null,0,75,76.00000000000001]
[null,{"$f":"SKP!B21","v":"3.)"},{"$f":"SKP!C21","v":"Membuat makalah ilmiah bidang pembelajaran, tidak diterbitkan, disimpan di perpustakaan"},{"$f":"SKP!G21","v":{"v":2,"d":"2.000"}},{"$f":"SKP!H21","v":1},{"$f":"SKP!I21","v":"Laporan"},{"$f":"SKP!J21","v":100},{"$f":"SKP!L21","v":12},"bln",{"$f":"SKP!M21","v":"-"},{"$f":"(VLOOKUP(C15,Setting!$T$4:$U$36,2,FALSE))*$L15","v":{"v":0,"d":"0.000"}},null,"Laporan",75,12,"bln","-",151,{"v":50.333333333333336,"d":"50.333"},null,0,75,76.00000000000001]
[null,{"$f":"SKP!B22","v":"4.)"},{"$f":"SKP!C22","v":"Membuat modul/diktat pembelajaran per semester, digunakan di madrasah"},{"$f":"SKP!G22","v":{"v":0.5,"d":"0.500"}},{"$f":"SKP!H22","v":1},{"$f":"SKP!I22","v":"Laporan"},{"$f":"SKP!J22","v":100},{"$f":"SKP!L22","v":12},"bln",{"$f":"SKP!M22","v":"-"},{"$f":"(VLOOKUP(C16,Setting!$T$4:$U$36,2,FALSE))*$L16","v":{"v":0,"d":"0.000"}},null,"Laporan",75,12,"bln","-",151,{"v":50.333333333333336,"d":"50.333"},null,0,75,76.00000000000001]
[null,{"$f":"SKP!B23","v":"5.)"},{"$f":"SKP!C23","v":"Membuat alat pelajaran kategori sederhana"},{"$f":"SKP!G23","v":{"v":1,"d":"1.000"}},{"$f":"SKP!H23","v":1},{"$f":"SKP!I23","v":"Alat Pelajaran"},{"$f":"SKP!J23","v":100},{"$f":"SKP!L23","v":12},"bln",{"$f":"SKP!M23","v":"-"},{"$f":"(VLOOKUP(C17,Setting!$T$4:$U$36,2,FALSE))*$L17","v":{"v":0,"d":"0.000"}},null,"Alat Pelajaran",75,12,"bln","-",151,{"v":50.333333333333336,"d":"50.333"},null,0,75,76.00000000000001]
[null,{"$f":"SKP!B24","v":"6.)"},{"$f":"SKP!C24","v":"Membuat alat peraga pembelajaran kategori sederhana"},{"$f":"SKP!G24","v":{"v":1,"d":"1.000"}},{"$f":"SKP!H24","v":1},{"$f":"SKP!I24","v":"Alat Peraga"},{"$f":"SKP!J24","v":100},{"$f":"SKP!L24","v":12},"bln",{"$f":"SKP!M24","v":"-"},{"$f":"(VLOOKUP(C18,Setting!$T$4:$U$36,2,FALSE))*$L18","v":{"v":0,"d":"0.000"}},null,"Alat Peraga",75,12,"bln","-",151,{"v":50.333333333333336,"d":"50.333"},null,0,75,76.00000000000001]
[null,{"$f":"SKP!B25","v":"7.)"},{"$f":"SKP!C25","v":"Membuat alat praktekum kategori sederhana"},{"$f":"SKP!G25","v":{"v":2,"d":"2.000"}},{"$f":"SKP!H25","v":1},{"$f":"SKP!I25","v":"Alat Praktik"},{"$f":"SKP!J25","v":100},{"$f":"SKP!L25","v":12},"bln",{"$f":"SKP!M25","v":"-"},{"$f":"(VLOOKUP(C19,Setting!$T$4:$U$36,2,FALSE))*$L19","v":{"v":0,"d":"0.000"}},null,"Alat Praktik",75,12,"bln","-",151,{"v":50.333333333333336,"d":"50.333"},null,0,75,76.00000000000001]
[null,"1. UNSUR PENUNJANG"]
[null,{"$f":"SKP!B27","v":"1.)"},{"$f":"SKP!C27","v":"Menjadi pengawas ujian penilaian dan evaluasi terhadap proses dan hasil belajar"},{"$f":"SKP!G27","v":{"v":0.24,"d":"0.240"}},{"$f":"SKP!H27","v":3},{"$f":"SKP!I27","v":"SK"},{"$f":"SKP!J27","v":100},{"$f":"SKP!L27","v":12},"bln",{"$f":"SKP!M27","v":"-"},{"$f":"(VLOOKUP(C21,Setting!$T$4:$U$36,2,FALSE))*$L21","v":{"$error":"#N/A"}},null,"SK",75,12,"bln","-",{"$f":"SUM(U21:W21)","v":151},{"v":50.333333333333336,"d":"50.333"},null,0,75,76.00000000000001]
[null,{"$f":"SKP!B28","v":"2.)"},{"$f":"SKP!C28","v":"Membimbing siswa dalam kegiatan ekstrakurikuler"},{"$f":"SKP!G28","v":{"v":0.17,"d":"0.170"}},{"$f":"SKP!H28","v":1},{"$f":"SKP!I28","v":"SK"},{"$f":"SKP!J28","v":100},{"$f":"SKP!L28","v":12},"bln",{"$f":"SKP!M28","v":"-"},{"$f":"(VLOOKUP(C22,Setting!$T$4:$U$36,2,FALSE))*$L22","v":{"$error":"#N/A"}},null,"SK",75,12,"bln","-",151,{"v":50.333333333333336,"d":"50.333"},null,0,75,76.00000000000001]
[null,{"$f":"SKP!B29","v":"3.)"},{"$f":"SKP!C29","v":"Menjadi anggota dalam organisasi profesi"},{"$f":"SKP!G29","v":{"v":0.75,"d":"0.750"}},{"$f":"SKP!H29","v":1},{"$f":"SKP!I29","v":"SK"},{"$f":"SKP!J29","v":100},{"$f":"SKP!L29","v":12},"bln",{"$f":"SKP!M29","v":"-"},{"$f":"(VLOOKUP(C23,Setting!$T$4:$U$36,2,FALSE))*$L23","v":{"$error":"#N/A"}},null,"SK",75,12,"bln","-",151,{"v":50.333333333333336,"d":"50.333"},null,0,75,76.00000000000001]
[null,"J u m l a h",{"$nulls":16},{"$f":"SUM(S9:S23)","v":{"$error":"#N/A"}}]
[null,"Nilai Capaian SKP",{"$nulls":16},{"$f":"S24/13","v":{"$error":"#N/A"}},null,"HARUS DIRUBAH SESUAI JUMLAH UNSUR SKP"]
[{"$nulls":18},{"$f":"IF(S25<=50,\"(BURUK)\",IF(S25<=60,\"(SEDANG)\",IF(S25<=75,\"(CUKUP)\",IF(S25<=90.99,\"(BAIK)\",\"(SANGAT BAIK)\"))))","v":{"$error":"#N/A"}},null,"Rumus :","Jumlah Skor"]
[{"$nulls":21},"Jumlah Unsur SKP"]
[{"$nulls":12},{"$f":"\"Cirebon, \"&Guru!D46","v":"Cirebon, 31 Desember 2021"}]
[{"$nulls":12},"Penilai,"]
[]
[]
[]
[{"$nulls":12},{"$f":"SKP!E5","v":0}]
[{"$nulls":12},{"$f":"\"NIP. \"&SKP!E6","v":"NIP. "}]

{"sheet":"Prilaku","index":12,"n_rows":18,"n_cols":12,"rows_kept":18,"merged":[[1,1,1,11],[6,2,6,4],[6,5,6,10],[8,5,8,9],[9,2,9,4],[9,5,9,10]]}
[]
[null,"BUKU CATATAN PENILAIAN PERILAKU PNS"]
[]
[]
[null,"N a m a",null,":",{"$f":"SKP!K5","v":0}]
[null,"N I P",null,":",{"$f":"SKP!K6","v":0}]
[null,"No.","Tanggal",null,null,"Uraian",{"$nulls":5},"Nama/NIP dan Paraf Pejabat Penilai"]
[]
[null,1,"Cirebon,",null,null,{"$f":"Guru!D42","v":"00:00:00"},{"$nulls":4},{"$f":"PCSKP!S25","v":{"$error":"#N/A"}}]
[null,null,{"$f":"Guru!D46","v":"31 Desember 2021"},null,null,"sedangkan penilaian perilaku kerjanya adalah sebagai berikut :",{"$nulls":5},"Pejabat Penilai :"]
[{"$nulls":6},"Orientasi Pelayanan","=",null,{"$f":"IF(I11=\"-\",\"  (-)\",(IF(I11<=50,\"  (Buruk)\",IF(I11<=60,\"  (Sedang)\",IF(I11<=75,\"  (Cukup)\",IF(I11<=90.99,\"  (Baik)\",\"  (Sangat Baik)\"))))))","v":"  (Buruk)"}]
[{"$nulls":6},"Integritas","=",null,{"$f":"IF(I12=\"-\",\"  (-)\",(IF(I12<=50,\"  (Buruk)\",IF(I12<=60,\"  (Sedang)\",IF(I12<=75,\"  (Cukup)\",IF(I12<=90.99,\"  (Baik)\",\"  (Sangat Baik)\"))))))","v":"  (Buruk)"}]
[{"$nulls":6},"Komitmen","=",{"v":91,"d":"91.000"},"  (Sangat Baik)"]
[{"$nulls":6},"Disiplin","=",null,"  (Buruk)",null,{"$f":"SKP!E5","v":0}]
[{"$nulls":6},"Kerjasama","=",null,"  (Buruk)",null,{"$f":"PCSKP!M34","v":"NIP. "}]
[{"$nulls":6},"Kepemimpinan","=","-","  (-)"]
[{"$nulls":6},"Jumlah","=",{"$f":"SUM(I11:I16)","v":{"v":91,"d":"91.000"}}]
[{"$nulls":6},"Nilai Rata-Rata","=",{"$f":"IF(I16=\"-\",I17/5,I17/6)","v":{"v":18.2,"d":"18.200"}},{"$f":"IF(I18<=50,\"  (Buruk)\",IF(I18<=60,\"  (Sedang)\",IF(I18<=75,\"  (Cukup)\",IF(I18<=90.99,\"  (Baik)\",\"  (Sangat Baik)\"))))","v":"  (Buruk)"}]

{"sheet":"PPKP","index":13,"n_rows":95,"n_cols":11,"rows_kept":95,"merged":[[1,1,1,6],[1,7,1,11],[2,1,2,6],[2,7,2,11],[3,1,3,6],[3,7,3,11],[4,1,4,6],[4,7,4,11],[5,1,5,6],[5,7,5,11],[6,1,6,11],[7,1,7,11],[8,1,8,6],[8,7,8,11],[9,1,9,6],[9,7,9,11],[10,1,10,6],[10,7,10,11],[11,2,11,11],[12,2,12,6],[12,7,12,11],[13,2,13,6],[13,7,13,11],[14,2,14,6],[14,7,14,11],[15,2,15,6],[15,7,15,11],[16,2,16,6],[16,7,16,11],[17,2,17,11],[18,2,18,6],[18,7,18,11],[19,2,19,6],[19,7,19,11],[20,2,20,6],[20,7,20,11],[21,2,21,6],[21,7,21,11],[22,2,22,6],[22,7,22,11],[23,2,23,11],[24,2,24,6],[24,7,24,11],[25,2,25,6],[25,7,25,11],[26,2,26,6],[26,7,26,11],[27,2,27,6],[27,7,27,11],[28,2,28,6],[28,7,28,11],[29,2,29,9],[29,10,29,11],[30,2,30,6],[30,8,30,9],[30,10,30,11],[31,2,31,4],[31,5,31,6],[31,8,31,9],[31,10,31,11],[32,2,32,4],[32,5,32,6],[32,8,32,9],[32,10,32,11],[33,2,33,4],[33,5,33,6],[33,8,33,9],[33,10,33,11],[34,2,34,4],[34,5,34,6],[34,8,34,9],[34,10,34,11],[35,2,35,4],[35,5,35,6],[35,8,35,9],[35,10,35,11],[36,2,36,4],[36,5,36,6],[36,8,36,9],[36,10,36,11],[37,2,37,4],[37,5,37,6],[37,8,37,9],[37,10,37,11],[38,2,38,4],[38,5,38,6],[38,8,38,9],[38,10,38,11],[39,2,39,4],[39,8,39,9],[39,10,39,11],[40,1,41,9],[40,10,40,11],[41,10,41,11],[72,8,72,11],[80,2,80,6]]}
[]
[]
[]
[]
[]
[]
[null,"PENILAIAN PRESTASI KERJA"]
[null,"PEGAWAI NEGERI SIPIL"]
[]
[null,"KEMENTERIAN AGAMA",{"$nulls":5},"                 JANGKA WAKTU PENILAIAN"]
[null,"KANTOR KABUPATEN CIREBON",{"$nulls":5},{"$f":"UPPER(Guru!D44&\" s/d \"&Guru!D46)","v":"1 JANUARI 2021 S/D 31 DESEMBER 2021"}]
[null,{"v":1,"d":"1."},"YANG DINILAI"]
[null,null,"a. N a m a",{"$nulls":4},{"$f":"Guru!D6","v":0}]
[null,null,"b. N I P",{"$nulls":4},{"$f":"Guru!D8","v":0}]
[null,null,"c. Pangkat / Gol. Ruang",{"$nulls":4},{"$f":"Guru!D12","v":0}]
[null,null,"d. Jabatan",{"$nulls":4},{"$f":"SKP!K8","v":{"$error":"#N/A"}}]
[null,null,"e. Unit Kerja",{"$nulls":4},{"$f":"SKP!K9","v":"MTsN 1 Cirebon"}]
[null,"2.","PEJABAT PENILAI"]
[null,null,"a. N a m a",{"$nulls":4},{"$f":"SKP!E5","v":0}]
[null,null,"b. N I P",{"$nulls":4},{"$f":"SKP!E6","v":""}]
[null,null,"c. Pangkat / Gol. Ruang",{"$nulls":4},{"$f":"SKP!E7","v":""}]
[null,null,"d. Jabatan",{"$nulls":4},{"$f":"SKP!E8","v":""}]
[null,null,"e. Unit Kerja",{"$nulls":4},{"$f":"SKP!E9","v":"Kementerian Agama Kabupaten Cirebon"}]
[null,{"v":3,"d":"3."},"ATASAN PEJABAT PENILAI"]
[null,null,"a. N a m a",{"$nulls":4},{"$f":"IF(H19=\"H. SOIF, S.Ag, M.Pd.\",\"Drs. H. MUJAYIN, M.Pd.I\",\"H. SOIF, S.Ag, M.Pd.\")","v":"H. SOIF, S.Ag, M.Pd."}]
[null,null,"b. N I P",{"$nulls":4},{"$f":"VLOOKUP($H$25,Setting!$A$76:$E$77,2,FALSE)","v":"19680302 199203 1 002"}]
[null,null,"c. Pangkat / Gol. Ruang",{"$nulls":4},{"$f":"VLOOKUP($H$25,Setting!$A$76:$E$77,3,FALSE)","v":"Pembina Tk. I / IV b"}]
[null,null,"d. Jabatan",{"$nulls":4},{"$f":"VLOOKUP($H$25,Setting!$A$76:$E$77,4,FALSE)","v":"Kepala Madrasah"}]
[null,null,"e. Unit Kerja",{"$nulls":4},{"$f":"VLOOKUP($H$25,Setting!$A$76:$E$77,5,FALSE)","v":"MTsN 1 Cirebon"}]
[null,{"v":4,"d":"4."},"UNSUR YANG DINILAI",{"$nulls":7},"J U M L A H"]
[null,null,"a. Sasaran Kerja PNS (SKP)",{"$nulls":4},{"$f":"PCSKP!S25","v":{"$error":"#N/A"}},"x 60%",null,{"$f":"H31*60%","v":{"$error":"#N/A"}}]
[null,null,"b. Perilaku Kerja",null,null,"Orientasi Pelayanan",null,{"$f":"Prilaku!I11","v":{"v":0,"d":"0.000"}},{"$f":"IF(H32=\"-\",\"-\",(IF(H32>=91,\"Sangat Baik\",IF(H32>=76,\"Baik\",IF(H32>=61,\"Cukup\",IF(H32>=51,\"Kurang\",IF(H32>=1,\"Buruk\",\"-\")))))))","v":"-"}]
[{"$nulls":5},"Integritas",null,{"$f":"Prilaku!I12","v":{"v":0,"d":"0.000"}},{"$f":"IF(H33=\"-\",\"-\",(IF(H33>=91,\"Sangat Baik\",IF(H33>=76,\"Baik\",IF(H33>=61,\"Cukup\",IF(H33>=51,\"Kurang\",IF(H33>=1,\"Buruk\",\"-\")))))))","v":"-"}]
[{"$nulls":5},"Komitmen",null,{"$f":"Prilaku!I13","v":{"v":91,"d":"91.000"}},{"$f":"IF(H34=\"-\",\"-\",(IF(H34>=91,\"Sangat Baik\",IF(H34>=76,\"Baik\",IF(H34>=61,\"Cukup\",IF(H34>=51,\"Kurang\",IF(H34>=1,\"Buruk\",\"-\")))))))","v":"Sangat Baik"}]
[{"$nulls":5},"Disiplin",null,{"$f":"Prilaku!I14","v":{"v":0,"d":"0.000"}},"-"]
[{"$nulls":5},"Kerjasama",null,{"$f":"Prilaku!I15","v":{"v":0,"d":"0.000"}},"-"]
[{"$nulls":5},"Kepemimpinan",null,{"$f":"Prilaku!I16","v":"-"},"-"]
[{"$nulls":5},"Jumlah",null,{"$f":"Prilaku!I17","v":{"v":91,"d":"91.000"}}]
[{"$nulls":5},"Nilai Rata-Rata",null,{"$f":"Prilaku!I18","v":{"v":18.2,"d":"18.200"}}]
[{"$nulls":5},"Nilai Perilaku Kerja",null,{"$f":"H39","v":{"v":18.2,"d":"18.200"}},"x 40%",null,{"$f":"H40*40%","v":{"v":7.28,"d":"7.280"}}]
[null,"Nilai Prestasi Kerja",{"$nulls":8},{"$f":"SUM(K40,K31)","v":{"$error":"#N/A"}}]
[{"$nulls":10},{"$f":"IF(K41=\"-\",\"-\",(IF(K41>=91,\"Sangat Baik\",IF(K41>=76,\"Baik\",IF(K41>=61,\"Cukup\",IF(K41>=51,\"Kurang\",IF(K41>=1,\"Buruk\",\"-\")))))))","v":{"$error":"#N/A"}}]
[]
[]
[null,"5.","KEBERATAN DARI PEGAWAI NEGERI SIPIL YANG DINILAI"]
[null,null,"(APABILA ADA)"]
[]
[]
[]
[{"$nulls":7},"Tanggal, ................................................."]
[]
[]
[null,"6.","TANGGAPAN PEJABAT PENILAI ATAS KEBERATAN"]
[]
[]
[]
[{"$nulls":7},"Tanggal, ................................................."]
[]
[]
[null,{"v":7,"d":"7."},"KEPUTUSAN ATASAN PEJABAT PENILAI ATAS KEBERATAN"]
[]
[]
[]
[{"$nulls":7},"Tanggal, ................................................."]
[]
[]
[null,{"v":8,"d":"8."},"REKOMENDASI"]
[]
[null,null,"Dapat dipromosikan"]
[]
[]
[]
[{"$nulls":7},"9.",{"$f":"\"DIBUAT TANGGAL, \"&UPPER(Guru!D46)","v":"DIBUAT TANGGAL, 31 DESEMBER 2021"}]
[{"$nulls":8},"PEJABAT PENILAI,"]
[]
[]
[]
[{"$nulls":8},{"$f":"H19","v":0}]
[{"$nulls":4},{"$f":"DATE(YEAR(Guru!$D$42)+1,MONTH(Guru!$D$42),DAY(Guru!$D$42))","v":"1900-12-31"},{"$nulls":3},{"$f":"\"NIP. \"&H20","v":"NIP. "}]
[]
[null,{"v":10,"d":"10."},{"$f":"\"DITERIMA TANGGAL, 04 JANUARI \"&TEXT(E79,\"YYYY\")","v":"DITERIMA TANGGAL, 04 JANUARI 1900"}]
[null,null,"PEGAWAI NEGERI SIPIL YANG DINILAI,"]
[]
[]
[]
[null,null,{"$f":"PPKP!H13","v":0}]
[null,null,{"$f":"\"NIP. \"&H14","v":"NIP. 0"}]
[]
[{"$nulls":7},"11.",{"$f":"\"DITERIMA TANGGAL, 11 JANUARI \"&TEXT(E79,\"YYYY\")","v":"DITERIMA TANGGAL, 11 JANUARI 1900"}]
[{"$nulls":8},"ATASAN PEJABAT YANG PENILAI,"]
[]
[]
[]
[{"$nulls":8},{"$f":"H25","v":"H. SOIF, S.Ag, M.Pd."}]
[{"$nulls":8},{"$f":"\"NIP. \"&H26","v":"NIP. 19680302 199203 1 002"}]